Workbook

Sheet Init
M15: -3200 | N15: 0.9
M16: 0 | N16: 10
M17: 3200 | N17: 1

Sheet Analyse1
A1: Analyse Raies | R1: P Cyg
A3: V | B3: 13.3 | D3: Min Flux | E3: 5300 | G3: I moyenne | H3: =+AVERAGE(Data!C:C) -> 1.112354026 | K3: FALSE
A4: E(B-V) | B4: 0.4 | D4: Max Flux | E4: 5800 | G4: Flux V | H4: =10^(-0.4*B3-8.449) -> 1.702158508e-14 | T4: 2
A6: l Min | B6: =+MIN(Data!A:A) -> 4323.897 | G6: lc1 Min | H6: =+H7-I6 -> 6495.81 | I6: 20
A7: l Max | B7: =+MAX(Data!A:A) -> 7295.897 | D7: l0 | E7: =+VLOOKUP(Donnees!$C$31,Donnees!$C$16:$G$29,3,1) -> 6562.81 | G7: lc1 Max | H7: =+E7-I7 -> 6515.81 | I7: 47
A8: Pas | B8: =+Data!A2-Data!A1 -> 1 | D8: Range | E8: 250 | G8: lInt Min | H8: =+E7-I8 -> 6515.81 | I8: 47
A9: Range | B9: =+B7-B6 -> 2972 | D9: l Min | E9: =+E7-E8/2 -> 6437.81 | G9: lInt Max | H9: =+E7+I9 -> 6614.81 | I9: 52
D10: l Max | E10: =+E7+E8/2 -> 6687.81 | G10: lc2 Min | H10: =+E7+I10 -> 6614.81 | I10: 52
D11: I Max | E11: =+MAX(B35:B155) -> 10.19702427 | G11: lc2 Max | H11: =+H10+I11 -> 6633.81 | I11: 19
D13: I Max/c | E13: =+I_Max-H17 -> 8.502315051 | G13: Continuum
E14: =+E13/2+H17 -> 5.945866746 | G14: =+AVERAGE(H6:H7) -> 6505.81 | H14: =+AVERAGE(H10:H11) -> 6624.31
G15: =+AVERAGE(V$35:V$1019) -> 1.687653987 | H15: =+AVERAGE(W35:W1019) -> 1.702321445
G16: Pente | H16: =+(H15-G15)/(H14-G14) -> 0.0001237760213
G17: c(l0) | H17: =+G15+(E7-G14)*H16 -> 1.69470922
A19: Ajustement gaussien | D19: ec | E19: =+SUM(AG35:AG156) -> 198.0894509 | AG19: D | AI19: 5 | AJ19: 5 | AK19: 2 | AL19: 2 | AM19: 5 | AN19: 5
B20: m | D20: s | E20: Intensité | G20: FWHM | H20: EW | AD20: m | AF20: s | AG20: I | AI20: m min | AJ20: m max | AK20: s min | AL20: s max | AM20: I min | AN20: I max
A21: Raie 1 | B21: 6562.058594 | C21: 0 | D21: 2.923747096 | E21: 67.96664762 | G21: =+D21*2.3548 -> 6.884839661 | H21: =+E21/($G$15+(B21-$E$7)*$H$16) -> 40.27507651 | AC21: Raie 1 | AD21: =+$E$7 -> 6562.81 | AF21: 4 | AG21: 5.9 | AI21: =+AD21-AI$19 -> 6557.81 | AJ21: =+AD21+AJ$19 -> 6567.81 | AK21: =+AF21-AK$19 -> 2 | AL21: =+AF21-AL$19 -> 2 | AM21: =+AG21-AM$19 -> 0.9 | AN21: =+AG21-AN$19 -> 0.9
A22: Raie 2 | B22: 6564.492976 | C22: 0 | D22: 14.65488624 | E22: 18.61990666 | G22: =+D22*2.3548 -> 34.50932613 | H22: =+E22/($G$15+(B22-$E$7)*$H$16) -> 11.03165032 | AC22: Raie 2 | AD22: 5016 | AF22: 4 | AG22: 4 | AI22: =+AD22-AI$19 -> 5011 | AJ22: =+AD22+AJ$19 -> 5021 | AK22: =+AF22-AK$19 -> 2 | AL22: =+AF22-AL$19 -> 2 | AM22: =+AG22-AM$19 -> -1 | AN22: =+AG22-AN$19 -> -1
A23: Raie 3 | B23: 6562.81 | C23: 0 | D23: 2.552609077 | E23: 0 | G23: 6.010883855 | H23: 0 | AC23: Raie 3 | AD23: 5016 | AF23: 10 | AG23: 0 | AI23: 5011 | AJ23: 5021 | AK23: 8 | AL23: 8 | AM23: -5 | AN23: -5
G24: Somme EW | H24: =+H21+H22+H23 -> 51.30672683
D25: Mesures | T25: 0.5
D27: Intensité | E27: =+SUM(D35:D156)*Pas -> 211.463711
D28: EW | E28: =+SUM(E35:E250)*Pas -> 315.948641 | N28: Intégration
D29: Flux | E29: =+Analyse1!H17/H3*H4*E28 -> 8.193484811e-12 | N29: Continuum
A32: l | B32: Intensité | D32: Ir - Ic | E32: (Ir - Ic)/Ic | G32: l
A33: Å | G33: km.s-1 | V33: Continuum | AC33: Gauss 1 | AD33: Gauss 2 | AE33: Gaus3 | AF33: S Gauss | AG33: ec
A35: =+VLOOKUP($E$9,Data!A:B,1,1) -> 6436.897 | B35: =IF(A35<E$10+1,+VLOOKUP($A35,Data!A:B,2,1),"") -> 0.9783490808 | D35: =+IF(AND(A35<$H$9,A35>$H$8),B35-X35,0) -> 0 | E35: =+D35/X35 -> 0 | G35: =+(A35-E$7)/E$7*300000 -> -5755.750966 | V35: =+IF(AND($A35>$H$6,$A35<$H$7),$B35,"") ->  | W35: =+IF(AND($A35>$H$10,$A35<$H$11),$B35,"") ->  | X35: =+$G$15+(A35-$G$14)*$H$16 -> 1.67912421 | Z35: =IF(AND($V35<>"",A35>$H$6,A35<$H$7),ABS($V35-$X35),"") ->  | AA35: =IF(AND($W35<>"",$A35>$H$10,$A35<$H$11),ABS($W35-$X35),"") ->  | AC35: =+$E$21/($D$21*SQRT(2*3.14159))*(EXP(-(($A35-$B$21)^2)/(2*$D$21^2)))+$X35 -> 1.67912421 | AD35: =+$E$22/($D$22*SQRT(2*3.14159))*(EXP(-(($A35-$B$22)^2)/(2*$D$22^2)))+$X35 -> 1.67912421 | AE35: =+$E$23/($D$23*SQRT(2*3.14159))*(EXP(-(($A35-$B$23)^2)/(2*$D$23^2)))+$X35 -> 1.67912421 | AF35: =+AC35+AD35+AE35-2*X35 -> 1.67912421 | AG35: =IF(D35<>0,+ABS(B35-AF35),0) -> 0 | AI35: =+H6 -> 6495.81 | AJ35: =+S25 -> 0
A36: =IF(A35<$E$10,+VLOOKUP($A35+1,Data!A:B,1,1),"") -> 6437.897 | B36: =IF(A36<E$10+1,+VLOOKUP($A36,Data!A:B,2,1),"") -> 0.9864907483 | D36: 0 | E36: 0 | G36: =+(A36-E$7)/E$7*300000 -> -5710.03884 | X36: 1.679247986 | AC36: 1.679247986 | AD36: 1.679247986 | AE36: 1.679247986 | AF36: =+AC36+AD36+AE36-2*X36 -> 1.679247986 | AG36: 0 | AI36: =+AI35 -> 6495.81 | AJ36: =+VLOOKUP(AI35,$A$35:$B$1016,2,1) -> 0.9697996511
A37: =IF(A36<$E$10,+VLOOKUP($A36+1,Data!A:B,1,1),"") -> 6438.897 | B37: =IF(A37<E$10+1,+VLOOKUP($A37,Data!A:B,2,1),"") -> 0.9957161543 | D37: 0 | E37: 0 | G37: -5664.326714 | X37: 1.679371762 | AC37: 1.679371762 | AD37: 1.679371762 | AE37: 1.679371762 | AF37: 1.679371762 | AG37: 0 | AI37: =+H7 -> 6515.81 | AJ37: =+S25 -> 0
A38: =IF(A37<$E$10,+VLOOKUP($A37+1,Data!A:B,1,1),"") -> 6439.897 | B38: =IF(A38<E$10+1,+VLOOKUP($A38,Data!A:B,2,1),"") -> 1.00299896 | D38: 0 | E38: 0 | G38: -5618.614587 | X38: 1.679495538 | AC38: 1.679495538 | AD38: 1.679495538 | AE38: 1.679495538 | AF38: 1.679495538 | AG38: 0 | AI38: =+AI37 -> 6515.81 | AJ38: =+VLOOKUP(AI37,$A$35:$B$1016,2,1) -> 3.001508796
A39: =IF(A38<$E$10,+VLOOKUP($A38+1,Data!A:B,1,1),"") -> 6440.897 | B39: =IF(A39<E$10+1,+VLOOKUP($A39,Data!A:B,2,1),"") -> 1.005290784 | D39: 0 | E39: 0 | G39: -5572.902461 | X39: 1.679619314 | AC39: 1.679619314 | AD39: 1.679619314 | AE39: 1.679619314 | AF39: 1.679619314 | AG39: 0 | AI39: =+H10 -> 6614.81 | AJ39: =+S25 -> 0
A40: =IF(A39<$E$10,+VLOOKUP($A39+1,Data!A:B,1,1),"") -> 6441.897 | B40: =IF(A40<E$10+1,+VLOOKUP($A40,Data!A:B,2,1),"") -> 0.9996211271 | D40: 0 | E40: 0 | G40: -5527.190335 | X40: 1.67974309 | AC40: 1.67974309 | AD40: 1.67974309 | AE40: 1.67974309 | AF40: 1.67974309 | AG40: 0 | AI40: =+AI39 -> 6614.81 | AJ40: =+VLOOKUP(AI39,$A$35:$B$1016,2,1) -> 3.584526556
A41: =IF(A40<$E$10,+VLOOKUP($A40+1,Data!A:B,1,1),"") -> 6442.897 | B41: =IF(A41<E$10+1,+VLOOKUP($A41,Data!A:B,2,1),"") -> 0.9862344467 | D41: 0 | E41: 0 | G41: -5481.478208 | X41: 1.679866866 | AC41: 1.679866866 | AD41: 1.679866866 | AE41: 1.679866866 | AF41: 1.679866866 | AG41: 0 | AI41: =+H11 -> 6633.81 | AJ41: =+S25 -> 0
A42: =IF(A41<$E$10,+VLOOKUP($A41+1,Data!A:B,1,1),"") -> 6443.897 | B42: =IF(A42<E$10+1,+VLOOKUP($A42,Data!A:B,2,1),"") -> 0.9696633026 | D42: 0 | E42: 0 | G42: -5435.766082 | X42: 1.679990642 | AC42: 1.679990642 | AD42: 1.679990642 | AE42: 1.679990642 | AF42: 1.679990642 | AG42: 0 | AI42: =+AI41 -> 6633.81 | AJ42: =+VLOOKUP(AI41,$A$35:$B$1016,2,1) -> 1.026472968
A43: =IF(A42<$E$10,+VLOOKUP($A42+1,Data!A:B,1,1),"") -> 6444.897 | B43: =IF(A43<E$10+1,+VLOOKUP($A43,Data!A:B,2,1),"") -> 0.9547383602 | D43: 0 | E43: 0 | G43: -5390.053956 | X43: 1.680114418 | AC43: 1.680114418 | AD43: 1.680114418 | AE43: 1.680114418 | AF43: 1.680114418 | AG43: 0 | AI43: =+H8 -> 6515.81 | AJ43: 0
A44: =IF(A43<$E$10,+VLOOKUP($A43+1,Data!A:B,1,1),"") -> 6445.897 | B44: =IF(A44<E$10+1,+VLOOKUP($A44,Data!A:B,2,1),"") -> 0.9462882818 | D44: 0 | E44: 0 | G44: -5344.341829 | X44: 1.680238194 | AC44: 1.680238194 | AD44: 1.680238194 | AE44: 1.680238194 | AF44: 1.680238194 | AG44: 0 | AI44: =+AI43 -> 6515.81 | AJ44: 20
A45: =IF(A44<$E$10,+VLOOKUP($A44+1,Data!A:B,1,1),"") -> 6446.897 | B45: =IF(A45<E$10+1,+VLOOKUP($A45,Data!A:B,2,1),"") -> 0.9471878604 | D45: 0 | E45: 0 | G45: -5298.629703 | X45: 1.68036197 | AC45: 1.68036197 | AD45: 1.68036197 | AE45: 1.68036197 | AF45: 1.68036197 | AG45: 0 | AI45: =+H9 -> 6614.81 | AJ45: 0
A46: =IF(A45<$E$10,+VLOOKUP($A45+1,Data!A:B,1,1),"") -> 6447.897 | B46: =IF(A46<E$10+1,+VLOOKUP($A46,Data!A:B,2,1),"") -> 0.9547056602 | D46: 0 | E46: 0 | G46: -5252.917576 | X46: 1.680485746 | AC46: 1.680485746 | AD46: 1.680485746 | AE46: 1.680485746 | AF46: 1.680485746 | AG46: 0 | AI46: =+AI45 -> 6614.81 | AJ46: 20
A47: =IF(A46<$E$10,+VLOOKUP($A46+1,Data!A:B,1,1),"") -> 6448.897 | B47: =IF(A47<E$10+1,+VLOOKUP($A47,Data!A:B,2,1),"") -> 0.9651110057 | D47: 0 | E47: 0 | G47: -5207.20545 | X47: 1.680609522 | AC47: 1.680609522 | AD47: 1.680609522 | AE47: 1.680609522 | AF47: 1.680609522 | AG47: 0
A48: =IF(A47<$E$10,+VLOOKUP($A47+1,Data!A:B,1,1),"") -> 6449.897 | B48: =IF(A48<E$10+1,+VLOOKUP($A48,Data!A:B,2,1),"") -> 0.9746732217 | D48: 0 | E48: 0 | G48: -5161.493324 | X48: 1.680733298 | AC48: 1.680733298 | AD48: 1.680733298 | AE48: 1.680733298 | AF48: 1.680733298 | AG48: 0
A49: =IF(A48<$E$10,+VLOOKUP($A48+1,Data!A:B,1,1),"") -> 6450.897 | B49: =IF(A49<E$10+1,+VLOOKUP($A49,Data!A:B,2,1),"") -> 0.9802382884 | D49: 0 | E49: 0 | G49: -5115.781197 | X49: 1.680857074 | AC49: 1.680857074 | AD49: 1.680857074 | AE49: 1.680857074 | AF49: 1.680857074 | AG49: 0
A50: =IF(A49<$E$10,+VLOOKUP($A49+1,Data!A:B,1,1),"") -> 6451.897 | B50: =IF(A50<E$10+1,+VLOOKUP($A50,Data!A:B,2,1),"") -> 0.9824780937 | D50: 0 | E50: 0 | G50: -5070.069071 | X50: 1.68098085 | AC50: 1.68098085 | AD50: 1.68098085 | AE50: 1.68098085 | AF50: 1.68098085 | AG50: 0
A51: =IF(A50<$E$10,+VLOOKUP($A50+1,Data!A:B,1,1),"") -> 6452.897 | B51: =IF(A51<E$10+1,+VLOOKUP($A51,Data!A:B,2,1),"") -> 0.9836224386 | D51: 0 | E51: 0 | G51: -5024.356945 | X51: 1.681104626 | AC51: 1.681104626 | AD51: 1.681104626 | AE51: 1.681104626 | AF51: 1.681104626 | AG51: 0
A52: =IF(A51<$E$10,+VLOOKUP($A51+1,Data!A:B,1,1),"") -> 6453.897 | B52: =IF(A52<E$10+1,+VLOOKUP($A52,Data!A:B,2,1),"") -> 0.9859056743 | D52: 0 | E52: 0 | G52: -4978.644818 | X52: 1.681228402 | AC52: 1.681228402 | AD52: 1.681228402 | AE52: 1.681228402 | AF52: 1.681228402 | AG52: 0
A53: =IF(A52<$E$10,+VLOOKUP($A52+1,Data!A:B,1,1),"") -> 6454.897 | B53: =IF(A53<E$10+1,+VLOOKUP($A53,Data!A:B,2,1),"") -> 0.9913989334 | D53: 0 | E53: 0 | G53: -4932.932692 | X53: 1.681352178 | AC53: 1.681352178 | AD53: 1.681352178 | AE53: 1.681352178 | AF53: 1.681352178 | AG53: 0
A54: =IF(A53<$E$10,+VLOOKUP($A53+1,Data!A:B,1,1),"") -> 6455.897 | B54: =IF(A54<E$10+1,+VLOOKUP($A54,Data!A:B,2,1),"") -> 0.9992484324 | D54: 0 | E54: 0 | G54: -4887.220566 | X54: 1.681475954 | AC54: 1.681475954 | AD54: 1.681475954 | AE54: 1.681475954 | AF54: 1.681475954 | AG54: 0
A55: =IF(A54<$E$10,+VLOOKUP($A54+1,Data!A:B,1,1),"") -> 6456.897 | B55: =IF(A55<E$10+1,+VLOOKUP($A55,Data!A:B,2,1),"") -> 1.006073172 | D55: 0 | E55: 0 | G55: -4841.508439 | X55: 1.68159973 | AC55: 1.68159973 | AD55: 1.68159973 | AE55: 1.68159973 | AF55: 1.68159973 | AG55: 0
A56: =IF(A55<$E$10,+VLOOKUP($A55+1,Data!A:B,1,1),"") -> 6457.897 | B56: =IF(A56<E$10+1,+VLOOKUP($A56,Data!A:B,2,1),"") -> 1.008409009 | D56: 0 | E56: 0 | G56: -4795.796313 | X56: 1.681723506 | AC56: 1.681723506 | AD56: 1.681723506 | AE56: 1.681723506 | AF56: 1.681723506 | AG56: 0
A57: =IF(A56<$E$10,+VLOOKUP($A56+1,Data!A:B,1,1),"") -> 6458.897 | B57: =IF(A57<E$10+1,+VLOOKUP($A57,Data!A:B,2,1),"") -> 1.002824681 | D57: 0 | E57: 0 | G57: -4750.084186 | X57: 1.681847282 | AC57: 1.681847282 | AD57: 1.681847282 | AE57: 1.681847282 | AF57: 1.681847282 | AG57: 0
A58: =IF(A57<$E$10,+VLOOKUP($A57+1,Data!A:B,1,1),"") -> 6459.897 | B58: =IF(A58<E$10+1,+VLOOKUP($A58,Data!A:B,2,1),"") -> 0.9889528651 | D58: 0 | E58: 0 | G58: -4704.37206 | X58: 1.681971058 | AC58: 1.681971058 | AD58: 1.681971058 | AE58: 1.681971058 | AF58: 1.681971058 | AG58: 0
A59: =IF(A58<$E$10,+VLOOKUP($A58+1,Data!A:B,1,1),"") -> 6460.897 | B59: =IF(A59<E$10+1,+VLOOKUP($A59,Data!A:B,2,1),"") -> 0.9719390333 | D59: 0 | E59: 0 | G59: -4658.659934 | X59: 1.682094834 | AC59: 1.682094834 | AD59: 1.682094834 | AE59: 1.682094834 | AF59: 1.682094834 | AG59: 0
A60: =IF(A59<$E$10,+VLOOKUP($A59+1,Data!A:B,1,1),"") -> 6461.897 | B60: =IF(A60<E$10+1,+VLOOKUP($A60,Data!A:B,2,1),"") -> 0.9575049347 | D60: 0 | E60: 0 | G60: -4612.947807 | X60: 1.68221861 | AC60: 1.68221861 | AD60: 1.68221861 | AE60: 1.68221861 | AF60: 1.68221861 | AG60: 0
A61: =IF(A60<$E$10,+VLOOKUP($A60+1,Data!A:B,1,1),"") -> 6462.897 | B61: =IF(A61<E$10+1,+VLOOKUP($A61,Data!A:B,2,1),"") -> 0.9513723183 | D61: 0 | E61: 0 | G61: -4567.235681 | X61: 1.682342386 | AC61: 1.682342386 | AD61: 1.682342386 | AE61: 1.682342386 | AF61: 1.682342386 | AG61: 0
A62: =IF(A61<$E$10,+VLOOKUP($A61+1,Data!A:B,1,1),"") -> 6463.897 | B62: =IF(A62<E$10+1,+VLOOKUP($A62,Data!A:B,2,1),"") -> 0.9572812546 | D62: 0 | E62: 0 | G62: -4521.523555 | X62: 1.682466162 | AC62: 1.682466162 | AD62: 1.682466162 | AE62: 1.682466162 | AF62: 1.682466162 | AG62: 0
A63: =IF(A62<$E$10,+VLOOKUP($A62+1,Data!A:B,1,1),"") -> 6464.897 | B63: =IF(A63<E$10+1,+VLOOKUP($A63,Data!A:B,2,1),"") -> 0.9710444492 | D63: 0 | E63: 0 | G63: -4475.811428 | X63: 1.682589938 | AC63: 1.682589938 | AD63: 1.682589938 | AE63: 1.682589938 | AF63: 1.682589938 | AG63: 0
A64: =IF(A63<$E$10,+VLOOKUP($A63+1,Data!A:B,1,1),"") -> 6465.897 | B64: =IF(A64<E$10+1,+VLOOKUP($A64,Data!A:B,2,1),"") -> 0.9864926042 | D64: 0 | E64: 0 | G64: -4430.099302 | X64: 1.682713714 | AC64: 1.682713714 | AD64: 1.682713714 | AE64: 1.682713714 | AF64: 1.682713714 | AG64: 0
A65: =IF(A64<$E$10,+VLOOKUP($A64+1,Data!A:B,1,1),"") -> 6466.897 | B65: =IF(A65<E$10+1,+VLOOKUP($A65,Data!A:B,2,1),"") -> 0.9974564216 | D65: 0 | E65: 0 | G65: -4384.387176 | X65: 1.68283749 | AC65: 1.68283749 | AD65: 1.68283749 | AE65: 1.68283749 | AF65: 1.68283749 | AG65: 0
A66: =IF(A65<$E$10,+VLOOKUP($A65+1,Data!A:B,1,1),"") -> 6467.897 | B66: =IF(A66<E$10+1,+VLOOKUP($A66,Data!A:B,2,1),"") -> 0.9984319144 | D66: 0 | E66: 0 | G66: -4338.675049 | X66: 1.682961266 | AC66: 1.682961266 | AD66: 1.682961267 | AE66: 1.682961266 | AF66: 1.682961267 | AG66: 0
A67: =IF(A66<$E$10,+VLOOKUP($A66+1,Data!A:B,1,1),"") -> 6468.897 | B67: =IF(A67<E$10+1,+VLOOKUP($A67,Data!A:B,2,1),"") -> 0.9902808048 | D67: 0 | E67: 0 | G67: -4292.962923 | X67: 1.683085042 | Z67: =IF(AND($V67<>"",A67>$H$6,A67<$H$7),ABS($V67-$X67),"") ->  | AA67: =IF(AND($W67<>"",$A67>$H$10,$A67<$H$11),ABS($W67-$X67),"") ->  | AC67: =+$E$21/($D$21*SQRT(2*3.14159))*(EXP(-(($A67-$B$21)^2)/(2*$D$21^2)))+$X67 -> 1.683085042 | AD67: =+$E$22/($D$22*SQRT(2*3.14159))*(EXP(-(($A67-$B$22)^2)/(2*$D$22^2)))+$X67 -> 1.683085043 | AE67: =+$E$23/($D$23*SQRT(2*3.14159))*(EXP(-(($A67-$B$23)^2)/(2*$D$23^2)))+$X67 -> 1.683085042 | AF67: 1.683085043 | AG67: =IF(D67<>0,+ABS(B67-AF67),0) -> 0
A68: =IF(A67<$E$10,+VLOOKUP($A67+1,Data!A:B,1,1),"") -> 6469.897 | B68: =IF(A68<E$10+1,+VLOOKUP($A68,Data!A:B,2,1),"") -> 0.9774033157 | D68: 0 | E68: 0 | G68: -4247.250797 | X68: 1.683208818 | AC68: 1.683208818 | AD68: 1.683208819 | AE68: 1.683208818 | AF68: 1.683208819 | AG68: 0
A69: =IF(A68<$E$10,+VLOOKUP($A68+1,Data!A:B,1,1),"") -> 6470.897 | B69: =IF(A69<E$10+1,+VLOOKUP($A69,Data!A:B,2,1),"") -> 0.9642376649 | D69: 0 | E69: 0 | G69: -4201.53867 | X69: 1.683332594 | AC69: 1.683332594 | AD69: 1.683332595 | AE69: 1.683332594 | AF69: 1.683332595 | AG69: 0
A70: =IF(A69<$E$10,+VLOOKUP($A69+1,Data!A:B,1,1),"") -> 6471.897 | B70: =IF(A70<E$10+1,+VLOOKUP($A70,Data!A:B,2,1),"") -> 0.9551426882 | D70: 0 | E70: 0 | G70: -4155.826544 | X70: 1.68345637 | AC70: 1.68345637 | AD70: 1.683456372 | AE70: 1.68345637 | AF70: 1.683456372 | AG70: 0
A71: =IF(A70<$E$10,+VLOOKUP($A70+1,Data!A:B,1,1),"") -> 6472.897 | B71: =IF(A71<E$10+1,+VLOOKUP($A71,Data!A:B,2,1),"") -> 0.9520636969 | D71: 0 | E71: 0 | G71: -4110.114417 | X71: 1.683580147 | AC71: 1.683580147 | AD71: 1.683580148 | AE71: 1.683580147 | AF71: 1.683580148 | AG71: 0
A72: =IF(A71<$E$10,+VLOOKUP($A71+1,Data!A:B,1,1),"") -> 6473.897 | B72: =IF(A72<E$10+1,+VLOOKUP($A72,Data!A:B,2,1),"") -> 0.9541522694 | D72: 0 | E72: 0 | G72: -4064.402291 | X72: 1.683703923 | AC72: 1.683703923 | AD72: 1.683703925 | AE72: 1.683703923 | AF72: 1.683703925 | AG72: 0
A73: =IF(A72<$E$10,+VLOOKUP($A72+1,Data!A:B,1,1),"") -> 6474.897 | B73: =IF(A73<E$10+1,+VLOOKUP($A73,Data!A:B,2,1),"") -> 0.9604040494 | D73: 0 | E73: 0 | G73: -4018.690165 | X73: 1.683827699 | AC73: 1.683827699 | AD73: 1.683827702 | AE73: 1.683827699 | AF73: 1.683827702 | AG73: 0
A74: =IF(A73<$E$10,+VLOOKUP($A73+1,Data!A:B,1,1),"") -> 6475.897 | B74: =IF(A74<E$10+1,+VLOOKUP($A74,Data!A:B,2,1),"") -> 0.9698141232 | D74: 0 | E74: 0 | G74: -3972.978038 | X74: 1.683951475 | AC74: 1.683951475 | AD74: 1.68395148 | AE74: 1.683951475 | AF74: 1.68395148 | AG74: 0
A75: =IF(A74<$E$10,+VLOOKUP($A74+1,Data!A:B,1,1),"") -> 6476.897 | B75: =IF(A75<E$10+1,+VLOOKUP($A75,Data!A:B,2,1),"") -> 0.9811864907 | D75: 0 | E75: 0 | G75: -3927.265912 | X75: 1.684075251 | AC75: 1.684075251 | AD75: 1.684075259 | AE75: 1.684075251 | AF75: 1.684075259 | AG75: 0
A76: =IF(A75<$E$10,+VLOOKUP($A75+1,Data!A:B,1,1),"") -> 6477.897 | B76: =IF(A76<E$10+1,+VLOOKUP($A76,Data!A:B,2,1),"") -> 0.99285581 | D76: 0 | E76: 0 | G76: -3881.553786 | X76: 1.684199027 | AC76: 1.684199027 | AD76: 1.68419904 | AE76: 1.684199027 | AF76: 1.68419904 | AG76: 0
A77: =IF(A76<$E$10,+VLOOKUP($A76+1,Data!A:B,1,1),"") -> 6478.897 | B77: =IF(A77<E$10+1,+VLOOKUP($A77,Data!A:B,2,1),"") -> 1.003085986 | D77: 0 | E77: 0 | G77: -3835.841659 | X77: 1.684322803 | AC77: 1.684322803 | AD77: 1.684322822 | AE77: 1.684322803 | AF77: 1.684322822 | AG77: 0
A78: =IF(A77<$E$10,+VLOOKUP($A77+1,Data!A:B,1,1),"") -> 6479.897 | B78: =IF(A78<E$10+1,+VLOOKUP($A78,Data!A:B,2,1),"") -> 1.010140924 | D78: 0 | E78: 0 | G78: -3790.129533 | X78: 1.684446579 | AC78: 1.684446579 | AD78: 1.684446608 | AE78: 1.684446579 | AF78: 1.684446608 | AG78: 0
A79: =IF(A78<$E$10,+VLOOKUP($A78+1,Data!A:B,1,1),"") -> 6480.897 | B79: =IF(A79<E$10+1,+VLOOKUP($A79,Data!A:B,2,1),"") -> 1.012568253 | D79: 0 | E79: 0 | G79: -3744.417407 | X79: 1.684570355 | AC79: 1.684570355 | AD79: 1.684570398 | AE79: 1.684570355 | AF79: 1.684570398 | AG79: 0
A80: =IF(A79<$E$10,+VLOOKUP($A79+1,Data!A:B,1,1),"") -> 6481.897 | B80: =IF(A80<E$10+1,+VLOOKUP($A80,Data!A:B,2,1),"") -> 1.010507702 | D80: 0 | E80: 0 | G80: -3698.70528 | X80: 1.684694131 | AC80: 1.684694131 | AD80: 1.684694195 | AE80: 1.684694131 | AF80: 1.684694195 | AG80: 0
A81: =IF(A80<$E$10,+VLOOKUP($A80+1,Data!A:B,1,1),"") -> 6482.897 | B81: =IF(A81<E$10+1,+VLOOKUP($A81,Data!A:B,2,1),"") -> 1.004653962 | D81: 0 | E81: 0 | G81: -3652.993154 | X81: 1.684817907 | AC81: 1.684817907 | AD81: 1.684818001 | AE81: 1.684817907 | AF81: 1.684818001 | AG81: 0
A82: =IF(A81<$E$10,+VLOOKUP($A81+1,Data!A:B,1,1),"") -> 6483.897 | B82: =IF(A82<E$10+1,+VLOOKUP($A82,Data!A:B,2,1),"") -> 0.9957022952 | D82: 0 | E82: 0 | G82: -3607.281027 | X82: 1.684941683 | AC82: 1.684941683 | AD82: 1.68494182 | AE82: 1.684941683 | AF82: 1.68494182 | AG82: 0
A83: =IF(A82<$E$10,+VLOOKUP($A82+1,Data!A:B,1,1),"") -> 6484.897 | B83: =IF(A83<E$10+1,+VLOOKUP($A83,Data!A:B,2,1),"") -> 0.9843568178 | D83: 0 | E83: 0 | G83: -3561.568901 | X83: 1.685065459 | AC83: 1.685065459 | AD83: 1.685065658 | AE83: 1.685065459 | AF83: 1.685065658 | AG83: 0
A84: =IF(A83<$E$10,+VLOOKUP($A83+1,Data!A:B,1,1),"") -> 6485.897 | B84: =IF(A84<E$10+1,+VLOOKUP($A84,Data!A:B,2,1),"") -> 0.9714490482 | D84: 0 | E84: 0 | G84: -3515.856775 | X84: 1.685189235 | AC84: 1.685189235 | AD84: 1.685189523 | AE84: 1.685189235 | AF84: 1.685189523 | AG84: 0
A85: =IF(A84<$E$10,+VLOOKUP($A84+1,Data!A:B,1,1),"") -> 6486.897 | B85: =IF(A85<E$10+1,+VLOOKUP($A85,Data!A:B,2,1),"") -> 0.9579060362 | D85: 0 | E85: 0 | G85: -3470.144648 | X85: 1.685313011 | AC85: 1.685313011 | AD85: 1.685313425 | AE85: 1.685313011 | AF85: 1.685313425 | AG85: 0
A86: =IF(A85<$E$10,+VLOOKUP($A85+1,Data!A:B,1,1),"") -> 6487.897 | B86: =IF(A86<E$10+1,+VLOOKUP($A86,Data!A:B,2,1),"") -> 0.9446571471 | D86: 0 | E86: 0 | G86: -3424.432522 | X86: 1.685436787 | AC86: 1.685436787 | AD86: 1.68543738 | AE86: 1.685436787 | AF86: 1.68543738 | AG86: 0
A87: =IF(A86<$E$10,+VLOOKUP($A86+1,Data!A:B,1,1),"") -> 6488.897 | B87: =IF(A87<E$10+1,+VLOOKUP($A87,Data!A:B,2,1),"") -> 0.9326371531 | D87: 0 | E87: 0 | G87: -3378.720396 | X87: 1.685560563 | AC87: 1.685560563 | AD87: 1.685561408 | AE87: 1.685560563 | AF87: 1.685561408 | AG87: 0
A88: =IF(A87<$E$10,+VLOOKUP($A87+1,Data!A:B,1,1),"") -> 6489.897 | B88: =IF(A88<E$10+1,+VLOOKUP($A88,Data!A:B,2,1),"") -> 0.9231084676 | D88: 0 | E88: 0 | G88: -3333.008269 | X88: 1.685684339 | AC88: 1.685684339 | AD88: 1.685685537 | AE88: 1.685684339 | AF88: 1.685685537 | AG88: 0
A89: =IF(A88<$E$10,+VLOOKUP($A88+1,Data!A:B,1,1),"") -> 6490.897 | B89: =IF(A89<E$10+1,+VLOOKUP($A89,Data!A:B,2,1),"") -> 0.9178431972 | D89: 0 | E89: 0 | G89: -3287.296143 | X89: 1.685808115 | AC89: 1.685808115 | AD89: 1.685809807 | AE89: 1.685808115 | AF89: 1.685809807 | AG89: 0
A90: =IF(A89<$E$10,+VLOOKUP($A89+1,Data!A:B,1,1),"") -> 6491.897 | B90: =IF(A90<E$10+1,+VLOOKUP($A90,Data!A:B,2,1),"") -> 0.91865751 | D90: 0 | E90: 0 | G90: -3241.584017 | X90: 1.685931891 | AC90: 1.685931891 | AD90: 1.685934269 | AE90: 1.685931891 | AF90: 1.685934269 | AG90: 0
A91: =IF(A90<$E$10,+VLOOKUP($A90+1,Data!A:B,1,1),"") -> 6492.897 | B91: =IF(A91<E$10+1,+VLOOKUP($A91,Data!A:B,2,1),"") -> 0.9273674659 | D91: 0 | E91: 0 | G91: -3195.87189 | X91: 1.686055667 | AC91: 1.686055667 | AD91: 1.686058994 | AE91: 1.686055667 | AF91: 1.686058994 | AG91: 0
A92: =IF(A91<$E$10,+VLOOKUP($A91+1,Data!A:B,1,1),"") -> 6493.897 | B92: =IF(A92<E$10+1,+VLOOKUP($A92,Data!A:B,2,1),"") -> 0.9449869758 | D92: 0 | E92: 0 | G92: -3150.159764 | X92: 1.686179443 | AC92: 1.686179443 | AD92: 1.686184076 | AE92: 1.686179443 | AF92: 1.686184076 | AG92: 0
A93: =IF(A92<$E$10,+VLOOKUP($A92+1,Data!A:B,1,1),"") -> 6494.897 | B93: =IF(A93<E$10+1,+VLOOKUP($A93,Data!A:B,2,1),"") -> 0.9697996511 | D93: 0 | E93: 0 | G93: -3104.447638 | X93: 1.686303219 | AC93: 1.686303219 | AD93: 1.68630964 | AE93: 1.686303219 | AF93: 1.68630964 | AG93: 0
A94: =IF(A93<$E$10,+VLOOKUP($A93+1,Data!A:B,1,1),"") -> 6495.897 | B94: =IF(A94<E$10+1,+VLOOKUP($A94,Data!A:B,2,1),"") -> 0.999508724 | D94: 0 | E94: 0 | G94: -3058.735511 | V94: 0.999508724 | X94: 1.686426995 | Z94: 0.686918271 | AC94: 1.686426995 | AD94: 1.686435853 | AE94: 1.686426995 | AF94: 1.686435853 | AG94: 0
A95: =IF(A94<$E$10,+VLOOKUP($A94+1,Data!A:B,1,1),"") -> 6496.897 | B95: =IF(A95<E$10+1,+VLOOKUP($A95,Data!A:B,2,1),"") -> 1.031817427 | D95: 0 | E95: 0 | G95: -3013.023385 | V95: 1.031817427 | X95: 1.686550771 | Z95: 0.6547333439 | AC95: 1.686550771 | AD95: 1.686562933 | AE95: 1.686550771 | AF95: 1.686562933 | AG95: 0
A96: =IF(A95<$E$10,+VLOOKUP($A95+1,Data!A:B,1,1),"") -> 6497.897 | B96: =IF(A96<E$10+1,+VLOOKUP($A96,Data!A:B,2,1),"") -> 1.064749808 | D96: 0 | E96: 0 | G96: -2967.311258 | V96: 1.064749808 | X96: 1.686674547 | Z96: 0.6219247389 | AC96: 1.686674547 | AD96: 1.68669117 | AE96: 1.686674547 | AF96: 1.68669117 | AG96: 0
A97: =IF(A96<$E$10,+VLOOKUP($A96+1,Data!A:B,1,1),"") -> 6498.897 | B97: =IF(A97<E$10+1,+VLOOKUP($A97,Data!A:B,2,1),"") -> 1.09889279 | D97: 0 | E97: 0 | G97: -2921.599132 | V97: 1.09889279 | X97: 1.686798323 | Z97: 0.5879055332 | AC97: 1.686798323 | AD97: 1.686820936 | AE97: 1.686798323 | AF97: 1.686820936 | AG97: 0
A98: =IF(A97<$E$10,+VLOOKUP($A97+1,Data!A:B,1,1),"") -> 6499.897 | B98: =IF(A98<E$10+1,+VLOOKUP($A98,Data!A:B,2,1),"") -> 1.136061599 | D98: 0 | E98: 0 | G98: -2875.887006 | V98: 1.136061599 | X98: 1.686922099 | Z98: 0.5508605002 | AC98: 1.686922099 | AD98: 1.686952718 | AE98: 1.686922099 | AF98: 1.686952718 | AG98: 0
A99: =IF(A98<$E$10,+VLOOKUP($A98+1,Data!A:B,1,1),"") -> 6500.897 | B99: =IF(A99<E$10+1,+VLOOKUP($A99,Data!A:B,2,1),"") -> 1.178079182 | D99: =+IF(AND(A99<$H$9,A99>$H$8),B99-X99,0) -> 0 | E99: =+D99/X99 -> 0 | G99: -2830.174879 | V99: =+IF(AND($A99>$H$6,$A99<$H$7),$B99,"") -> 1.178079182 | W99: =+IF(AND($A99>$H$10,$A99<$H$11),$B99,"") ->  | X99: =+$G$15+(A99-$G$14)*$H$16 -> 1.687045875 | Z99: =IF(AND($V99<>"",A99>$H$6,A99<$H$7),ABS($V99-$X99),"") -> 0.5089666931 | AA99: =IF(AND($W99<>"",$A99>$H$10,$A99<$H$11),ABS($W99-$X99),"") ->  | AC99: =+$E$21/($D$21*SQRT(2*3.14159))*(EXP(-(($A99-$B$21)^2)/(2*$D$21^2)))+$X99 -> 1.687045875 | AD99: =+$E$22/($D$22*SQRT(2*3.14159))*(EXP(-(($A99-$B$22)^2)/(2*$D$22^2)))+$X99 -> 1.687087143 | AE99: =+$E$23/($D$23*SQRT(2*3.14159))*(EXP(-(($A99-$B$23)^2)/(2*$D$23^2)))+$X99 -> 1.687045875 | AF99: 1.687087143 | AG99: =IF(D99<>0,+ABS(B99-AF99),0) -> 0
A100: =IF(A99<$E$10,+VLOOKUP($A99+1,Data!A:B,1,1),"") -> 6501.897 | B100: =IF(A100<E$10+1,+VLOOKUP($A100,Data!A:B,2,1),"") -> 1.226770789 | D100: 0 | E100: 0 | G100: =+(A100-E$7)/E$7*300000 -> -2784.462753 | V100: 1.226770789 | X100: 1.687169651 | Z100: 0.4603988621 | AC100: 1.687169651 | AD100: 1.687225012 | AE100: 1.687169651 | AF100: =+AC100+AD100+AE100-2*X100 -> 1.687225012 | AG100: 0
A101: =IF(A100<$E$10,+VLOOKUP($A100+1,Data!A:B,1,1),"") -> 6502.897 | B101: =IF(A101<E$10+1,+VLOOKUP($A101,Data!A:B,2,1),"") -> 1.284015147 | D101: 0 | E101: 0 | G101: -2738.750627 | V101: 1.284015147 | X101: 1.687293427 | Z101: 0.40327828 | AC101: 1.687293427 | AD101: 1.687367348 | AE101: 1.687293427 | AF101: 1.687367348 | AG101: 0
A102: =IF(A101<$E$10,+VLOOKUP($A101+1,Data!A:B,1,1),"") -> 6503.897 | B102: =IF(A102<E$10+1,+VLOOKUP($A102,Data!A:B,2,1),"") -> 1.351744744 | D102: 0 | E102: 0 | G102: -2693.0385 | V102: 1.351744744 | X102: 1.687417203 | Z102: 0.335672459 | AC102: 1.687417203 | AD102: 1.687515449 | AE102: 1.687417203 | AF102: 1.687515449 | AG102: 0
A103: =IF(A102<$E$10,+VLOOKUP($A102+1,Data!A:B,1,1),"") -> 6504.897 | B103: =IF(A103<E$10+1,+VLOOKUP($A103,Data!A:B,2,1),"") -> 1.431894428 | D103: 0 | E103: 0 | G103: -2647.326374 | V103: 1.431894428 | X103: 1.687540979 | Z103: 0.2556465513 | AC103: 1.687540979 | AD103: 1.687670948 | AE103: 1.687540979 | AF103: 1.687670948 | AG103: 0
A104: =IF(A103<$E$10,+VLOOKUP($A103+1,Data!A:B,1,1),"") -> 6505.897 | B104: =IF(A104<E$10+1,+VLOOKUP($A104,Data!A:B,2,1),"") -> 1.526395345 | D104: 0 | E104: 0 | G104: -2601.614248 | V104: 1.526395345 | X104: 1.687664755 | Z104: 0.1612694103 | AC104: 1.687664755 | AD104: 1.687835892 | AE104: 1.687664755 | AF104: 1.687835892 | AG104: 0
A105: =IF(A104<$E$10,+VLOOKUP($A104+1,Data!A:B,1,1),"") -> 6506.897 | B105: =IF(A105<E$10+1,+VLOOKUP($A105,Data!A:B,2,1),"") -> 1.63656209 | D105: 0 | E105: 0 | G105: -2555.902121 | V105: 1.63656209 | X105: 1.687788531 | Z105: 0.05122644137 | AC105: 1.687788531 | AD105: 1.688012828 | AE105: 1.687788531 | AF105: 1.688012828 | AG105: 0
A106: =IF(A105<$E$10,+VLOOKUP($A105+1,Data!A:B,1,1),"") -> 6507.897 | B106: =IF(A106<E$10+1,+VLOOKUP($A106,Data!A:B,2,1),"") -> 1.762408243 | D106: 0 | E106: 0 | G106: -2510.189995 | V106: 1.762408243 | X106: 1.687912307 | Z106: 0.07449593541 | AC106: 1.687912307 | AD106: 1.688204912 | AE106: 1.687912307 | AF106: 1.688204912 | AG106: 0
A107: =IF(A106<$E$10,+VLOOKUP($A106+1,Data!A:B,1,1),"") -> 6508.897 | B107: =IF(A107<E$10+1,+VLOOKUP($A107,Data!A:B,2,1),"") -> 1.903782357 | D107: 0 | E107: 0 | G107: -2464.477868 | V107: 1.903782357 | X107: 1.688036083 | Z107: 0.2157462734 | AC107: 1.688036083 | AD107: 1.688416025 | AE107: 1.688036083 | AF107: 1.688416025 | AG107: 0
A108: =IF(A107<$E$10,+VLOOKUP($A107+1,Data!A:B,1,1),"") -> 6509.897 | B108: =IF(A108<E$10+1,+VLOOKUP($A108,Data!A:B,2,1),"") -> 2.060532985 | D108: 0 | E108: 0 | G108: -2418.765742 | V108: 2.060532985 | X108: 1.688159859 | Z108: 0.3723731261 | AC108: 1.688159859 | AD108: 1.688650916 | AE108: 1.688159859 | AF108: 1.688650916 | AG108: 0
A109: =IF(A108<$E$10,+VLOOKUP($A108+1,Data!A:B,1,1),"") -> 6510.897 | B109: =IF(A109<E$10+1,+VLOOKUP($A109,Data!A:B,2,1),"") -> 2.232037264 | D109: 0 | E109: 0 | G109: -2373.053616 | V109: 2.232037264 | X109: 1.688283635 | Z109: 0.5437536283 | AC109: 1.688283635 | AD109: 1.688915353 | AE109: 1.688283635 | AF109: 1.688915353 | AG109: 0
A110: =IF(A109<$E$10,+VLOOKUP($A109+1,Data!A:B,1,1),"") -> 6511.897 | B110: =IF(A110<E$10+1,+VLOOKUP($A110,Data!A:B,2,1),"") -> 2.415427326 | D110: 0 | E110: 0 | G110: -2327.341489 | V110: 2.415427326 | X110: 1.688407411 | Z110: 0.7270199143 | AC110: 1.688407411 | AD110: 1.689216307 | AE110: 1.688407411 | AF110: 1.689216307 | AG110: 0
A111: =IF(A110<$E$10,+VLOOKUP($A110+1,Data!A:B,1,1),"") -> 6512.897 | B111: =IF(A111<E$10+1,+VLOOKUP($A111,Data!A:B,2,1),"") -> 2.607167737 | D111: 0 | E111: 0 | G111: -2281.629363 | V111: 2.607167737 | X111: 1.688531187 | Z111: 0.9186365497 | AC111: 1.688531187 | AD111: 1.689562143 | AE111: 1.688531187 | AF111: 1.689562143 | AG111: 0
A112: =IF(A111<$E$10,+VLOOKUP($A111+1,Data!A:B,1,1),"") -> 6513.897 | B112: =IF(A112<E$10+1,+VLOOKUP($A112,Data!A:B,2,1),"") -> 2.803722954 | D112: 0 | E112: 0 | G112: -2235.917237 | V112: 2.803722954 | X112: 1.688654963 | Z112: 1.11506799 | AC112: 1.688654963 | AD112: 1.689962835 | AE112: 1.688654963 | AF112: 1.689962835 | AG112: 0
A113: =IF(A112<$E$10,+VLOOKUP($A112+1,Data!A:B,1,1),"") -> 6514.897 | B113: =IF(A113<E$10+1,+VLOOKUP($A113,Data!A:B,2,1),"") -> 3.001508796 | D113: 0 | E113: 0 | G113: -2190.20511 | V113: 3.001508796 | X113: 1.688778739 | Z113: 1.312730057 | AC113: 1.688778739 | AD113: 1.690430199 | AE113: 1.688778739 | AF113: 1.690430199 | AG113: 0
A114: =IF(A113<$E$10,+VLOOKUP($A113+1,Data!A:B,1,1),"") -> 6515.897 | B114: =IF(A114<E$10+1,+VLOOKUP($A114,Data!A:B,2,1),"") -> 3.196370145 | D114: 1.50746763 | E114: 0.8925723161 | G114: -2144.492984 | X114: 1.688902515 | AC114: 1.688902515 | AD114: 1.69097814 | AE114: 1.688902515 | AF114: 1.69097814 | AG114: 1.505392005
A115: =IF(A114<$E$10,+VLOOKUP($A114+1,Data!A:B,1,1),"") -> 6516.897 | B115: =IF(A115<E$10+1,+VLOOKUP($A115,Data!A:B,2,1),"") -> 3.383780872 | D115: 1.694754581 | E115: 1.003391474 | G115: -2098.780858 | X115: 1.689026291 | AC115: 1.689026291 | AD115: 1.691622906 | AE115: 1.689026291 | AF115: 1.691622906 | AG115: 1.692157966
A116: =IF(A115<$E$10,+VLOOKUP($A115+1,Data!A:B,1,1),"") -> 6517.897 | B116: =IF(A116<E$10+1,+VLOOKUP($A116,Data!A:B,2,1),"") -> 3.559208545 | D116: 1.870058478 | E116: 1.10710026 | G116: -2053.068731 | X116: 1.689150067 | AC116: 1.689150067 | AD116: 1.692383352 | AE116: 1.689150067 | AF116: 1.692383352 | AG116: 1.866825193
A117: =IF(A116<$E$10,+VLOOKUP($A116+1,Data!A:B,1,1),"") -> 6518.897 | B117: =IF(A117<E$10+1,+VLOOKUP($A117,Data!A:B,2,1),"") -> 3.718210437 | D117: 2.028936593 | E117: 1.201070271 | G117: -2007.356605 | X117: 1.689273843 | AC117: 1.689273843 | AD117: 1.693281202 | AE117: 1.689273843 | AF117: 1.693281202 | AG117: 2.024929235
A118: =IF(A117<$E$10,+VLOOKUP($A117+1,Data!A:B,1,1),"") -> 6519.897 | B118: =IF(A118<E$10+1,+VLOOKUP($A118,Data!A:B,2,1),"") -> 3.860138429 | D118: 2.170740809 | E118: 1.284920012 | G118: -1961.644479 | X118: 1.68939762 | AC118: 1.68939762 | AD118: 1.694341299 | AE118: 1.68939762 | AF118: 1.694341299 | AG118: 2.16579713
A119: =IF(A118<$E$10,+VLOOKUP($A118+1,Data!A:B,1,1),"") -> 6520.897 | B119: =IF(A119<E$10+1,+VLOOKUP($A119,Data!A:B,2,1),"") -> 3.989459311 | D119: 2.299937916 | E119: 1.361295525 | G119: -1915.932352 | X119: 1.689521396 | AC119: 1.689521396 | AD119: 1.695591836 | AE119: 1.689521396 | AF119: 1.695591836 | AG119: 2.293867475
A120: =IF(A119<$E$10,+VLOOKUP($A119+1,Data!A:B,1,1),"") -> 6521.897 | B120: =IF(A120<E$10+1,+VLOOKUP($A120,Data!A:B,2,1),"") -> 4.11100104 | D120: 2.421355869 | E120: 1.433055833 | G120: -1870.220226 | X120: 1.689645172 | AC120: 1.689645172 | AD120: 1.697064558 | AE120: 1.689645172 | AF120: 1.697064558 | AG120: 2.413936483
A121: =IF(A120<$E$10,+VLOOKUP($A120+1,Data!A:B,1,1),"") -> 6522.897 | B121: =IF(A121<E$10+1,+VLOOKUP($A121,Data!A:B,2,1),"") -> 4.229590545 | D121: 2.539821598 | E121: 1.503058511 | G121: -1824.508099 | X121: 1.689768948 | AC121: 1.689768948 | AD121: 1.69879491 | AE121: 1.689768948 | AF121: 1.69879491 | AG121: 2.530795635
A122: =IF(A121<$E$10,+VLOOKUP($A121+1,Data!A:B,1,1),"") -> 6523.897 | B122: =IF(A122<E$10+1,+VLOOKUP($A122,Data!A:B,2,1),"") -> 4.348951078 | D122: 2.659058355 | E122: 1.573507192 | G122: -1778.795973 | X122: 1.689892724 | AC122: 1.689892724 | AD122: 1.700822139 | AE122: 1.689892724 | AF122: 1.700822139 | AG122: 2.64812894
A123: =IF(A122<$E$10,+VLOOKUP($A122+1,Data!A:B,1,1),"") -> 6524.897 | B123: =IF(A123<E$10+1,+VLOOKUP($A123,Data!A:B,2,1),"") -> 4.469601974 | D123: 2.779585475 | E123: 1.644709075 | G123: -1733.083847 | X123: 1.6900165 | AC123: 1.6900165 | AD123: 1.7031893 | AE123: 1.6900165 | AF123: 1.7031893 | AG123: 2.766412674
A124: =IF(A123<$E$10,+VLOOKUP($A123+1,Data!A:B,1,1),"") -> 6525.897 | B124: =IF(A124<E$10+1,+VLOOKUP($A124,Data!A:B,2,1),"") -> 4.591484472 | D124: 2.901344196 | E124: 1.716629228 | G124: -1687.37172 | X124: 1.690140276 | AC124: 1.690140276 | AD124: 1.705943189 | AE124: 1.690140276 | AF124: 1.705943189 | AG124: 2.885541283
A125: =IF(A124<$E$10,+VLOOKUP($A124+1,Data!A:B,1,1),"") -> 6526.897 | B125: =IF(A125<E$10+1,+VLOOKUP($A125,Data!A:B,2,1),"") -> 4.714539809 | D125: 3.024275758 | E125: 1.789232726 | G125: -1641.659594 | X125: 1.690264052 | AC125: 1.690264052 | AD125: 1.709134143 | AE125: 1.690264052 | AF125: 1.709134143 | AG125: 3.005405666
A126: =IF(A125<$E$10,+VLOOKUP($A125+1,Data!A:B,1,1),"") -> 6527.897 | B126: =IF(A126<E$10+1,+VLOOKUP($A126,Data!A:B,2,1),"") -> 4.838819066 | D126: 3.148431238 | E126: 1.862549639 | G126: -1595.947468 | X126: 1.690387828 | AC126: 1.690387828 | AD126: 1.712815731 | AE126: 1.690387828 | AF126: 1.712815731 | AG126: 3.126003336
A127: =IF(A126<$E$10,+VLOOKUP($A126+1,Data!A:B,1,1),"") -> 6528.897 | B127: =IF(A127<E$10+1,+VLOOKUP($A127,Data!A:B,2,1),"") -> 4.965111315 | D127: 3.274599711 | E127: 1.937046574 | G127: -1550.235341 | X127: 1.690511604 | AC127: 1.690511604 | AD127: 1.717044286 | AE127: 1.690511604 | AF127: 1.717044286 | AG127: 3.248067029
A128: =IF(A127<$E$10,+VLOOKUP($A127+1,Data!A:B,1,1),"") -> 6529.897 | B128: =IF(A128<E$10+1,+VLOOKUP($A128,Data!A:B,2,1),"") -> 5.094509575 | D128: 3.403874195 | E128: 2.013369787 | G128: -1504.523215 | X128: 1.69063538 | AC128: 1.69063538 | AD128: 1.721878289 | AE128: 1.69063538 | AF128: 1.721878289 | AG128: 3.372631285
A129: =IF(A128<$E$10,+VLOOKUP($A128+1,Data!A:B,1,1),"") -> 6530.897 | B129: =IF(A129<E$10+1,+VLOOKUP($A129,Data!A:B,2,1),"") -> 5.22810781 | D129: 3.537348654 | E129: 2.092165902 | G129: -1458.811089 | X129: 1.690759156 | AC129: 1.690759156 | AD129: 1.727377576 | AE129: 1.690759156 | AF129: 1.727377576 | AG129: 3.500730233
A130: =IF(A129<$E$10,+VLOOKUP($A129+1,Data!A:B,1,1),"") -> 6531.897 | B130: =IF(A130<E$10+1,+VLOOKUP($A130,Data!A:B,2,1),"") -> 5.367163998 | D130: 3.676281066 | E130: 2.174178352 | G130: -1413.098962 | X130: 1.690882932 | AC130: 1.690882932 | AD130: 1.733602373 | AE130: 1.690882932 | AF130: 1.733602373 | AG130: 3.633561624
A131: =IF(A130<$E$10,+VLOOKUP($A130+1,Data!A:B,1,1),"") -> 6532.897 | B131: =IF(A131<E$10+1,+VLOOKUP($A131,Data!A:B,2,1),"") -> 5.515925747 | D131: 3.824919039 | E131: 2.261918313 | G131: -1367.386836 | X131: 1.691006708 | Z131: =IF(AND($V131<>"",A131>$H$6,A131<$H$7),ABS($V131-$X131),"") ->  | AA131: =IF(AND($W131<>"",$A131>$H$10,$A131<$H$11),ABS($W131-$X131),"") ->  | AC131: =+$E$21/($D$21*SQRT(2*3.14159))*(EXP(-(($A131-$B$21)^2)/(2*$D$21^2)))+$X131 -> 1.691006708 | AD131: =+$E$22/($D$22*SQRT(2*3.14159))*(EXP(-(($A131-$B$22)^2)/(2*$D$22^2)))+$X131 -> 1.740612153 | AE131: =+$E$23/($D$23*SQRT(2*3.14159))*(EXP(-(($A131-$B$23)^2)/(2*$D$23^2)))+$X131 -> 1.691006708 | AF131: 1.740612153 | AG131: =IF(D131<>0,+ABS(B131-AF131),0) -> 3.775313595
A132: =IF(A131<$E$10,+VLOOKUP($A131+1,Data!A:B,1,1),"") -> 6533.897 | B132: =IF(A132<E$10+1,+VLOOKUP($A132,Data!A:B,2,1),"") -> 5.681250961 | D132: 3.990120478 | E132: 2.359439745 | G132: -1321.674709 | X132: 1.691130484 | AC132: 1.691130484 | AD132: 1.748464313 | AE132: 1.691130484 | AF132: 1.748464313 | AG132: 3.932786648
A133: =IF(A132<$E$10,+VLOOKUP($A132+1,Data!A:B,1,1),"") -> 6534.897 | B133: =IF(A133<E$10+1,+VLOOKUP($A133,Data!A:B,2,1),"") -> 5.870085252 | D133: 4.178830993 | E133: 2.470847283 | G133: -1275.962583 | X133: 1.69125426 | AC133: 1.69125426 | AD133: 1.757212699 | AE133: 1.69125426 | AF133: 1.757212699 | AG133: 4.112872553
A134: =IF(A133<$E$10,+VLOOKUP($A133+1,Data!A:B,1,1),"") -> 6535.897 | B134: =IF(A134<E$10+1,+VLOOKUP($A134,Data!A:B,2,1),"") -> 6.089282996 | D134: 4.39790496 | E134: 2.600190417 | G134: -1230.250457 | X134: 1.691378036 | AC134: 1.691378036 | AD134: 1.766905972 | AE134: 1.691378036 | AF134: 1.766905972 | AG134: 4.322377024
A135: =IF(A134<$E$10,+VLOOKUP($A134+1,Data!A:B,1,1),"") -> 6536.897 | B135: =IF(A135<E$10+1,+VLOOKUP($A135,Data!A:B,2,1),"") -> 6.336890271 | D135: 4.645388459 | E135: 2.74631007 | G135: -1184.53833 | X135: 1.691501812 | AC135: 1.691501812 | AD135: 1.777585861 | AE135: 1.691501812 | AF135: 1.777585861 | AG135: 4.55930441
A136: =IF(A135<$E$10,+VLOOKUP($A135+1,Data!A:B,1,1),"") -> 6537.897 | B136: =IF(A136<E$10+1,+VLOOKUP($A136,Data!A:B,2,1),"") -> 6.594931424 | D136: 4.903305836 | E136: 2.898576299 | G136: -1138.826204 | X136: 1.691625588 | AC136: 1.691625588 | AD136: 1.78928533 | AE136: 1.691625588 | AF136: 1.78928533 | AG136: 4.805646094
A137: =IF(A136<$E$10,+VLOOKUP($A136+1,Data!A:B,1,1),"") -> 6538.897 | B137: =IF(A137<E$10,+VLOOKUP($A137,Data!A:B,2,1),"") -> 6.843732946 | D137: 5.151983583 | E137: 3.045358664 | G137: -1093.114078 | X137: 1.691749364 | AC137: 1.691749364 | AD137: 1.802026705 | AE137: 1.691749364 | AF137: 1.802026705 | AG137: 5.041706242
A138: =IF(A137<$E$10,+VLOOKUP($A137+1,Data!A:B,1,1),"") -> 6539.897 | B138: =IF(A138<E$10,+VLOOKUP($A138,Data!A:B,2,1),"") -> 7.063621328 | D138: 5.371748188 | E138: 3.175030126 | G138: -1047.401951 | X138: 1.69187314 | AC138: 1.69187314 | AD138: 1.815819797 | AE138: 1.69187314 | AF138: 1.815819797 | AG138: 5.247801531
A139: =IF(A138<$E$10,+VLOOKUP($A138+1,Data!A:B,1,1),"") -> 6540.897 | B139: =IF(A139<E$10,+VLOOKUP($A139,Data!A:B,2,1),"") -> 7.241882496 | D139: 5.54988558 | E139: 3.280080199 | G139: -1001.689825 | X139: 1.691996916 | AC139: 1.691996916 | AD139: 1.830660102 | AE139: 1.691996916 | AF139: 1.830660102 | AG139: 5.411222395
A140: =IF(A139<$E$10,+VLOOKUP($A139+1,Data!A:B,1,1),"") -> 6541.897 | B140: =IF(A140<E$10,+VLOOKUP($A140,Data!A:B,2,1),"") -> 7.393978509 | D140: 5.701857817 | E140: 3.369651966 | G140: -955.9776986 | X140: 1.692120692 | AC140: 1.692120692 | AD140: 1.846527111 | AE140: 1.692120692 | AF140: 1.846527111 | AG140: 5.547451397
A141: =IF(A140<$E$10,+VLOOKUP($A140+1,Data!A:B,1,1),"") -> 6542.897 | B141: =IF(A141<E$10,+VLOOKUP($A141,Data!A:B,2,1),"") -> 7.542501075 | D141: 5.850256607 | E141: 3.45709897 | G141: -910.2655722 | X141: 1.692244468 | AC141: 1.692244472 | AD141: 1.863382821 | AE141: 1.692244468 | AF141: 1.863382826 | AG141: 5.679118249
A142: =IF(A141<$E$10,+VLOOKUP($A141+1,Data!A:B,1,1),"") -> 6543.897 | B142: =IF(A142<E$10,+VLOOKUP($A142,Data!A:B,2,1),"") -> 7.710041906 | D142: 6.017673662 | E142: 3.555770846 | G142: -864.5534459 | X142: 1.692368244 | AC142: 1.692368283 | AD142: 1.881170496 | AE142: 1.692368244 | AF142: 1.881170534 | AG142: 5.828871372
A143: =IF(A142<$E$10,+VLOOKUP($A142+1,Data!A:B,1,1),"") -> 6544.897 | B143: =IF(A143<E$10,+VLOOKUP($A143,Data!A:B,2,1),"") -> 7.916819053 | D143: 6.224327033 | E143: 3.67761086 | G143: -818.8413195 | X143: 1.69249202 | AC143: 1.692492326 | AD143: 1.899813744 | AE143: 1.69249202 | AF143: 1.89981405 | AG143: 6.017005003
A144: =IF(A143<$E$10,+VLOOKUP($A143+1,Data!A:B,1,1),"") -> 6545.897 | B144: =IF(A144<E$10,+VLOOKUP($A144,Data!A:B,2,1),"") -> 8.160025731 | D144: 6.467409935 | E144: 3.820955677 | G144: -773.1291931 | X144: 1.692615796 | AC144: 1.692617945 | AD144: 1.919215989 | AE144: 1.692615796 | AF144: 1.919218138 | AG144: 6.240807593
A145: =IF(A144<$E$10,+VLOOKUP($A144+1,Data!A:B,1,1),"") -> 6546.897 | B145: =IF(A145<E$10,+VLOOKUP($A145,Data!A:B,2,1),"") -> 8.423916548 | D145: 6.731176976 | E145: 3.976498858 | G145: -727.4170668 | X145: 1.692739572 | AC145: 1.692752997 | AD145: 1.939260368 | AE145: 1.692739572 | AF145: 1.939273793 | AG145: 6.484642754
A146: =IF(A145<$E$10,+VLOOKUP($A145+1,Data!A:B,1,1),"") -> 6547.897 | B146: =IF(A146<E$10,+VLOOKUP($A146,Data!A:B,2,1),"") -> 8.692602242 | D146: 6.999738894 | E146: 4.134851701 | G146: -681.7049404 | X146: 1.692863348 | AC146: 1.692937958 | AD146: 1.959810118 | AE146: 1.692863348 | AF146: 1.959884728 | AG146: 6.732717514
A147: =IF(A146<$E$10,+VLOOKUP($A146+1,Data!A:B,1,1),"") -> 6548.897 | B147: =IF(A147<E$10,+VLOOKUP($A147,Data!A:B,2,1),"") -> 8.950412576 | D147: 7.257425452 | E147: 4.286757618 | G147: -635.9928141 | X147: 1.692987124 | AC147: 1.693355992 | AD147: 1.980709475 | AE147: 1.692987124 | AF147: 1.981078343 | AG147: 6.969334234
A148: =IF(A147<$E$10,+VLOOKUP($A147+1,Data!A:B,1,1),"") -> 6549.897 | B148: =IF(A148<E$10,+VLOOKUP($A148,Data!A:B,2,1),"") -> 9.188479768 | D148: 7.495368868 | E148: 4.426980458 | G148: -590.2806877 | X148: 1.6931109 | AC148: 1.694733236 | AD148: 2.001785114 | AE148: 1.6931109 | AF148: 2.00340745 | AG148: 7.185072318
A149: =IF(A148<$E$10,+VLOOKUP($A148+1,Data!A:B,1,1),"") -> 6550.897 | B149: =IF(A149<E$10,+VLOOKUP($A149,Data!A:B,2,1),"") -> 9.405892933 | D149: 7.712658257 | E149: 4.554984826 | G149: -544.5685613 | X149: 1.693234676 | AC149: 1.69958222 | AD149: 2.022848126 | AE149: 1.693234676 | AF149: 2.029195669 | AG149: 7.376697264
A150: =IF(A149<$E$10,+VLOOKUP($A149+1,Data!A:B,1,1),"") -> 6551.897 | B150: =IF(A150<E$10,+VLOOKUP($A150,Data!A:B,2,1),"") -> 9.602192881 | D150: 7.908834429 | E150: 4.670502231 | G150: -498.856435 | X150: 1.693358452 | AC150: 1.715452016 | AD150: 2.043696512 | AE150: 1.693358452 | AF150: 2.065790076 | AG150: 7.536402806
A151: =IF(A150<$E$10,+VLOOKUP($A150+1,Data!A:B,1,1),"") -> 6552.897 | B151: =IF(A151<E$10,+VLOOKUP($A151,Data!A:B,2,1),"") -> 9.776917245 | D151: 8.083435017 | E151: 4.773262383 | G151: -453.1443086 | X151: 1.693482228 | AC151: 1.761892462 | AD151: 2.064118175 | AE151: 1.693482228 | AF151: 2.132528409 | AG151: 7.644388837
A152: =IF(A151<$E$10,+VLOOKUP($A151+1,Data!A:B,1,1),"") -> 6553.897 | B152: =IF(A152<E$10,+VLOOKUP($A152,Data!A:B,2,1),"") -> 9.928443451 | D152: 8.234837447 | E152: 4.862310021 | G152: -407.4321823 | X152: 1.693606004 | AC152: 1.882045346 | AD152: 2.083894344 | AE152: 1.693606004 | AF152: 2.272333685 | AG152: 7.656109765
A153: =IF(A152<$E$10,+VLOOKUP($A152+1,Data!A:B,1,1),"") -> 6554.897 | B153: =IF(A153<E$10,+VLOOKUP($A153,Data!A:B,2,1),"") -> 10.05226661 | D153: 8.358536834 | E153: 4.934988409 | G153: -361.7200559 | X153: 1.69372978 | AC153: 2.155490818 | AD153: 2.102803366 | AE153: 1.69372978 | AF153: 2.564564403 | AG153: 7.487702211
A154: =IF(A153<$E$10,+VLOOKUP($A153+1,Data!A:B,1,1),"") -> 6555.897 | B154: =IF(A154<E$10,+VLOOKUP($A154,Data!A:B,2,1),"") -> 10.14344185 | D154: 8.449588293 | E154: 4.988381824 | G154: -316.0079295 | X154: 1.693853556 | AC154: 2.700456503 | AD154: 2.120624773 | AE154: 1.693853556 | AF154: 3.127227719 | AG154: 7.01621413
A155: =IF(A154<$E$10,+VLOOKUP($A154+1,Data!A:B,1,1),"") -> 6556.897 | B155: =IF(A155<E$10,+VLOOKUP($A155,Data!A:B,2,1),"") -> 10.19702427 | D155: 8.503046939 | E155: 5.019575396 | G155: -270.2958032 | X155: 1.693977332 | AC155: 3.646042511 | AD155: 2.137143528 | AE155: 1.693977332 | AF155: 4.089208707 | AG155: 6.107815565
A156: =IF(A155<$E$10,+VLOOKUP($A155+1,Data!A:B,1,1),"") -> 6557.897 | B156: =IF(A156<E$10,+VLOOKUP($A156,Data!A:B,2,1),"") -> 10.20968041 | D156: 8.515579297 | E156: =+D156/X156 -> 5.026606296 | G156: -224.5836768 | X156: 1.694101108 | AC156: 5.061740931 | AD156: 2.152154341 | AE156: 1.694101108 | AF156: 5.519794163 | AG156: 4.689886242
A157: =IF(A156<$E$10,+VLOOKUP($A156+1,Data!A:B,1,1),"") -> 6558.897 | B157: =IF(A157<E$10,+VLOOKUP($A157,Data!A:B,2,1),"") -> 10.18723073 | D157: 8.493005849 | E157: 5.012915303 | G157: -178.8715504 | X157: 1.694224884
A158: =IF(A157<$E$10,+VLOOKUP($A157+1,Data!A:B,1,1),"") -> 6559.897 | B158: =IF(A158<E$10,+VLOOKUP($A158,Data!A:B,2,1),"") -> 10.13872392 | D158: 8.444375257 | E158: 4.983847454 | G158: -133.1594241 | X158: 1.69434866
A159: =IF(A158<$E$10,+VLOOKUP($A158+1,Data!A:B,1,1),"") -> 6560.897 | B159: =IF(A159<E$10,+VLOOKUP($A159,Data!A:B,2,1),"") -> 10.07321226 | D159: 8.378739826 | E159: 4.944748375 | G159: -87.44729773 | X159: 1.694472436
A160: =IF(A159<$E$10,+VLOOKUP($A159+1,Data!A:B,1,1),"") -> 6561.897 | B160: =IF(A160<E$10,+VLOOKUP($A160,Data!A:B,2,1),"") -> 9.999719958 | D160: 8.305123745 | E160: 4.900945538 | G160: -41.73517137 | X160: 1.694596212
A161: =IF(A160<$E$10,+VLOOKUP($A160+1,Data!A:B,1,1),"") -> 6562.897 | B161: =IF(A161<E$10,+VLOOKUP($A161,Data!A:B,2,1),"") -> 9.926860277 | D161: 8.232140289 | E161: 4.85752239 | G161: 3.976954993 | X161: 1.694719988
A162: =IF(A161<$E$10,+VLOOKUP($A161+1,Data!A:B,1,1),"") -> 6563.897 | B162: =IF(A162<E$10,+VLOOKUP($A162,Data!A:B,2,1),"") -> 9.862935107 | D162: 8.168091343 | E162: 4.819377169 | G162: 49.68908135 | X162: 1.694843764
A163: =IF(A162<$E$10,+VLOOKUP($A162+1,Data!A:B,1,1),"") -> 6564.897 | B163: =IF(A163<E$10,+VLOOKUP($A163,Data!A:B,2,1),"") -> 9.816238605 | D163: =+IF(AND(A163<$H$9,A163>$H$8),B163-X163,0) -> 8.121271064 | E163: 4.791402119 | G163: 95.40120771 | V163: =+IF(AND($A163>$H$6,$A163<$H$7),$B163,"") ->  | W163: =+IF(AND($A163>$H$10,$A163<$H$11),$B163,"") ->  | X163: =+$G$15+(A163-$G$14)*$H$16 -> 1.69496754
A164: =IF(A163<$E$10,+VLOOKUP($A163+1,Data!A:B,1,1),"") -> 6565.897 | B164: =IF(A164<E$10,+VLOOKUP($A164,Data!A:B,2,1),"") -> 9.794903244 | D164: 8.099811928 | E164: 4.778392673 | G164: =+(A164-E$7)/E$7*300000 -> 141.1133341 | X164: 1.695091316
A165: =IF(A164<$E$10,+VLOOKUP($A164+1,Data!A:B,1,1),"") -> 6566.897 | B165: =IF(A165<E$10,+VLOOKUP($A165,Data!A:B,2,1),"") -> 9.796975406 | D165: 8.101760314 | E165: 4.779193124 | G165: 186.8254604 | X165: 1.695215093
A166: =IF(A165<$E$10,+VLOOKUP($A165+1,Data!A:B,1,1),"") -> 6567.897 | B166: =IF(A166<E$10,+VLOOKUP($A166,Data!A:B,2,1),"") -> 9.804642402 | D166: 8.109303533 | E166: 4.783293584 | G166: 232.5375868 | X166: 1.695338869
A167: =IF(A166<$E$10,+VLOOKUP($A166+1,Data!A:B,1,1),"") -> 6568.897 | B167: =IF(A167<E$10,+VLOOKUP($A167,Data!A:B,2,1),"") -> 9.798700606 | D167: 8.103237962 | E167: 4.779366852 | G167: 278.2497132 | X167: 1.695462645
A168: =IF(A167<$E$10,+VLOOKUP($A167+1,Data!A:B,1,1),"") -> 6569.897 | B168: =IF(A168<E$10,+VLOOKUP($A168,Data!A:B,2,1),"") -> 9.759947022 | D168: 8.064360602 | E168: 4.7560894 | G168: 323.9618395 | X168: 1.695586421
A169: =IF(A168<$E$10,+VLOOKUP($A168+1,Data!A:B,1,1),"") -> 6570.897 | B169: =IF(A169<E$10,+VLOOKUP($A169,Data!A:B,2,1),"") -> 9.675007136 | D169: 7.97929694 | E169: 4.705578203 | G169: 369.6739659 | X169: 1.695710197
A170: =IF(A169<$E$10,+VLOOKUP($A169+1,Data!A:B,1,1),"") -> 6571.897 | B170: =IF(A170<E$10,+VLOOKUP($A170,Data!A:B,2,1),"") -> 9.550582553 | D170: 7.85474858 | E170: 4.631791028 | G170: 415.3860922 | X170: 1.695833973
A171: =IF(A170<$E$10,+VLOOKUP($A170+1,Data!A:B,1,1),"") -> 6572.897 | B171: =IF(A171<E$10,+VLOOKUP($A171,Data!A:B,2,1),"") -> 9.397694214 | D171: 7.701736466 | E171: 4.541231332 | G171: 461.0982186 | X171: 1.695957749
A172: =IF(A171<$E$10,+VLOOKUP($A171+1,Data!A:B,1,1),"") -> 6573.897 | B172: =IF(A172<E$10,+VLOOKUP($A172,Data!A:B,2,1),"") -> 9.227363064 | D172: 7.531281539 | E172: =+D172/X172 -> 4.44040067 | G172: 506.810345 | X172: 1.696081525
A173: =IF(A172<$E$10,+VLOOKUP($A172+1,Data!A:B,1,1),"") -> 6574.897 | B173: =IF(A173<E$10,+VLOOKUP($A173,Data!A:B,2,1),"") -> 9.049850831 | D173: 7.353645531 | E173: 4.335351109 | G173: 552.5224713 | X173: 1.696205301
A174: =IF(A173<$E$10,+VLOOKUP($A173+1,Data!A:B,1,1),"") -> 6575.897 | B174: =IF(A174<E$10,+VLOOKUP($A174,Data!A:B,2,1),"") -> 8.869274284 | D174: 7.172945207 | E174: 4.228510438 | G174: 598.2345977 | X174: 1.696329077
A175: =IF(A174<$E$10,+VLOOKUP($A174+1,Data!A:B,1,1),"") -> 6576.897 | B175: =IF(A175<E$10,+VLOOKUP($A175,Data!A:B,2,1),"") -> 8.686772257 | D175: 6.990319404 | E175: 4.120550355 | G175: 643.946724 | X175: 1.696452853
A176: =IF(A175<$E$10,+VLOOKUP($A175+1,Data!A:B,1,1),"") -> 6577.897 | B176: =IF(A176<E$10,+VLOOKUP($A176,Data!A:B,2,1),"") -> 8.503464018 | D176: 6.80688739 | E176: 4.012130825 | G176: 689.6588504 | X176: 1.696576629
A177: =IF(A176<$E$10,+VLOOKUP($A176+1,Data!A:B,1,1),"") -> 6578.897 | B177: =IF(A177<E$10,+VLOOKUP($A177,Data!A:B,2,1),"") -> 8.320465192 | D177: 6.623764787 | E177: 3.903909475 | G177: 735.3709768 | X177: 1.696700405
A178: =IF(A177<$E$10,+VLOOKUP($A177+1,Data!A:B,1,1),"") -> 6579.897 | B178: =IF(A178<E$10,+VLOOKUP($A178,Data!A:B,2,1),"") -> 8.13880512 | D178: 6.441980939 | E178: 3.796492891 | G178: 781.0831031 | X178: 1.696824181
A179: =IF(A178<$E$10,+VLOOKUP($A178+1,Data!A:B,1,1),"") -> 6580.897 | B179: =IF(A179<E$10,+VLOOKUP($A179,Data!A:B,2,1),"") -> 7.959425499 | D179: 6.262477543 | E179: 3.690435831 | G179: 826.7952295 | X179: 1.696947957
A180: =IF(A179<$E$10,+VLOOKUP($A179+1,Data!A:B,1,1),"") -> 6581.897 | B180: =IF(A180<E$10,+VLOOKUP($A180,Data!A:B,2,1),"") -> 7.783264106 | D180: 6.086192374 | E180: 3.586290583 | G180: 872.5073558 | X180: 1.697071733
A181: =IF(A180<$E$10,+VLOOKUP($A180+1,Data!A:B,1,1),"") -> 6582.897 | B181: =IF(A181<E$10,+VLOOKUP($A181,Data!A:B,2,1),"") -> 7.61125316 | D181: 5.914057651 | E181: 3.484605999 | G181: 918.2194822 | X181: 1.697195509
A182: =IF(A181<$E$10,+VLOOKUP($A181+1,Data!A:B,1,1),"") -> 6583.897 | B182: =IF(A182<E$10,+VLOOKUP($A182,Data!A:B,2,1),"") -> 7.443355167 | D182: 5.746035882 | E182: 3.385359451 | G182: 963.9316086 | X182: 1.697319285
A183: =IF(A182<$E$10,+VLOOKUP($A182+1,Data!A:B,1,1),"") -> 6584.897 | B183: =IF(A183<E$10,+VLOOKUP($A183,Data!A:B,2,1),"") -> 7.277463506 | D183: 5.580020445 | E183: 3.28730935 | G183: 1009.643735 | X183: 1.697443061
A184: =IF(A183<$E$10,+VLOOKUP($A183+1,Data!A:B,1,1),"") -> 6585.897 | B184: =IF(A184<E$10,+VLOOKUP($A184,Data!A:B,2,1),"") -> 7.111205657 | D184: 5.413638821 | E184: 3.189057834 | G184: 1055.355861 | X184: 1.697566837
A185: =IF(A184<$E$10,+VLOOKUP($A184+1,Data!A:B,1,1),"") -> 6586.897 | B185: =IF(A185<E$10,+VLOOKUP($A185,Data!A:B,2,1),"") -> 6.942209106 | D185: 5.244518493 | E185: 3.089207452 | G185: 1101.067988 | X185: 1.697690613
A186: =IF(A185<$E$10,+VLOOKUP($A185+1,Data!A:B,1,1),"") -> 6587.897 | B186: =IF(A186<E$10,+VLOOKUP($A186,Data!A:B,2,1),"") -> 6.769798091 | D186: 5.071983703 | E186: 2.987360536 | G186: 1146.780114 | X186: 1.697814389
A187: =IF(A186<$E$10,+VLOOKUP($A186+1,Data!A:B,1,1),"") -> 6588.897 | B187: =IF(A187<E$10,+VLOOKUP($A187,Data!A:B,2,1),"") -> 6.601475362 | D187: 4.903537197 | E187: 2.887936262 | G187: 1192.49224 | X187: 1.697938165
A188: =IF(A187<$E$10,+VLOOKUP($A187+1,Data!A:B,1,1),"") -> 6589.897 | B188: =IF(A188<E$10,+VLOOKUP($A188,Data!A:B,2,1),"") -> 6.447204656 | D188: 4.749142715 | E188: 2.796801813 | G188: 1238.204367 | X188: 1.698061941
A189: =IF(A188<$E$10,+VLOOKUP($A188+1,Data!A:B,1,1),"") -> 6590.897 | B189: =IF(A189<E$10,+VLOOKUP($A189,Data!A:B,2,1),"") -> 6.316950204 | D189: 4.618764487 | E189: 2.71982295 | G189: 1283.916493 | X189: 1.698185717
A190: =IF(A189<$E$10,+VLOOKUP($A189+1,Data!A:B,1,1),"") -> 6591.897 | B190: =IF(A190<E$10,+VLOOKUP($A190,Data!A:B,2,1),"") -> 6.220037667 | D190: 4.521728173 | E190: 2.662487722 | G190: 1329.628619 | X190: 1.698309493
A191: =IF(A190<$E$10,+VLOOKUP($A190+1,Data!A:B,1,1),"") -> 6592.897 | B191: =IF(A191<E$10,+VLOOKUP($A191,Data!A:B,2,1),"") -> 6.158186043 | D191: 4.459752774 | E191: 2.625803943 | G191: 1375.340746 | X191: 1.698433269
A192: =IF(A191<$E$10,+VLOOKUP($A191+1,Data!A:B,1,1),"") -> 6593.897 | B192: =IF(A192<E$10,+VLOOKUP($A192,Data!A:B,2,1),"") -> 6.128118361 | D192: 4.429561316 | E192: 2.607837829 | G192: 1421.052872 | X192: 1.698557045
A193: =IF(A192<$E$10,+VLOOKUP($A192+1,Data!A:B,1,1),"") -> 6594.897 | B193: =IF(A193<E$10,+VLOOKUP($A193,Data!A:B,2,1),"") -> 6.126470316 | D193: 4.427789495 | E193: 2.606604749 | G193: 1466.764999 | X193: 1.698680821
A194: =IF(A193<$E$10,+VLOOKUP($A193+1,Data!A:B,1,1),"") -> 6595.897 | B194: =IF(A194<E$10,+VLOOKUP($A194,Data!A:B,2,1),"") -> 6.149813229 | D194: 4.451008632 | E194: 2.620082756 | G194: 1512.477125 | X194: 1.698804597
A195: =IF(A194<$E$10,+VLOOKUP($A194+1,Data!A:B,1,1),"") -> 6596.897 | B195: =IF(A195<E$10,+VLOOKUP($A195,Data!A:B,2,1),"") -> 6.191927179 | D195: 4.492998805 | E195: 2.644607552 | G195: 1558.189251 | X195: 1.698928373
A196: =IF(A195<$E$10,+VLOOKUP($A195+1,Data!A:B,1,1),"") -> 6597.897 | B196: =IF(A196<E$10,+VLOOKUP($A196,Data!A:B,2,1),"") -> 6.242789895 | D196: 4.543737746 | E196: 2.674277978 | G196: 1603.901378 | X196: 1.699052149
A197: =IF(A196<$E$10,+VLOOKUP($A196+1,Data!A:B,1,1),"") -> 6598.897 | B197: =IF(A197<E$10,+VLOOKUP($A197,Data!A:B,2,1),"") -> 6.292106434 | D197: 4.592930508 | E197: 2.703034124 | G197: 1649.613504 | X197: 1.699175925
A198: =IF(A197<$E$10,+VLOOKUP($A197+1,Data!A:B,1,1),"") -> 6599.897 | B198: =IF(A198<E$10,+VLOOKUP($A198,Data!A:B,2,1),"") -> 6.329583828 | D198: 4.630284127 | E198: 2.724819008 | G198: 1695.32563 | X198: 1.699299701
A199: =IF(A198<$E$10,+VLOOKUP($A198+1,Data!A:B,1,1),"") -> 6600.897 | B199: =IF(A199<E$10,+VLOOKUP($A199,Data!A:B,2,1),"") -> 6.347291748 | D199: 4.647868271 | E199: 2.734967672 | G199: 1741.037757 | X199: 1.699423477
A200: =IF(A199<$E$10,+VLOOKUP($A199+1,Data!A:B,1,1),"") -> 6601.897 | B200: =IF(A200<E$10,+VLOOKUP($A200,Data!A:B,2,1),"") -> 6.344239033 | D200: 4.64469178 | E200: 2.732899466 | G200: 1786.749883 | X200: 1.699547253
A201: =IF(A200<$E$10,+VLOOKUP($A200+1,Data!A:B,1,1),"") -> 6602.897 | B201: =IF(A201<E$10,+VLOOKUP($A201,Data!A:B,2,1),"") -> 6.320701995 | D201: 4.621030966 | E201: 2.718779626 | G201: 1832.462009 | X201: 1.699671029
A202: =IF(A201<$E$10,+VLOOKUP($A201+1,Data!A:B,1,1),"") -> 6603.897 | B202: =IF(A202<E$10,+VLOOKUP($A202,Data!A:B,2,1),"") -> 6.276956945 | D202: 4.57716214 | E202: 2.692773343 | G202: 1878.174136 | X202: 1.699794805
A203: =IF(A202<$E$10,+VLOOKUP($A202+1,Data!A:B,1,1),"") -> 6604.897 | B203: =IF(A203<E$10,+VLOOKUP($A203,Data!A:B,2,1),"") -> 6.211925544 | D203: 4.512006963 | E203: 2.654248864 | G203: 1923.886262 | X203: 1.699918581
A204: =IF(A203<$E$10,+VLOOKUP($A203+1,Data!A:B,1,1),"") -> 6605.897 | B204: =IF(A204<E$10,+VLOOKUP($A204,Data!A:B,2,1),"") -> 6.115312348 | D204: 4.415269991 | E204: 2.597152931 | G204: 1969.598388 | X204: 1.700042357
A205: =IF(A204<$E$10,+VLOOKUP($A204+1,Data!A:B,1,1),"") -> 6606.897 | B205: =IF(A205<E$10,+VLOOKUP($A205,Data!A:B,2,1),"") -> 5.972982451 | D205: 4.272816318 | E205: 2.513175762 | G205: 2015.310515 | X205: 1.700166133
A206: =IF(A205<$E$10,+VLOOKUP($A205+1,Data!A:B,1,1),"") -> 6607.897 | B206: =IF(A206<E$10,+VLOOKUP($A206,Data!A:B,2,1),"") -> 5.770788276 | D206: 4.070498366 | E206: 2.394002543 | G206: 2061.022641 | X206: 1.700289909
A207: =IF(A206<$E$10,+VLOOKUP($A206+1,Data!A:B,1,1),"") -> 6608.897 | B207: =IF(A207<E$10,+VLOOKUP($A207,Data!A:B,2,1),"") -> 5.495625756 | D207: 3.795212071 | E207: 2.23193456 | G207: 2106.734768 | X207: 1.700413685
A208: =IF(A207<$E$10,+VLOOKUP($A207+1,Data!A:B,1,1),"") -> 6609.897 | B208: =IF(A208<E$10,+VLOOKUP($A208,Data!A:B,2,1),"") -> 5.153740736 | D208: 3.453203275 | E208: 2.030654045 | G208: 2152.446894 | X208: 1.700537461
... 812 more rows

Sheet Spectres
A1: Spectres
B4: Intensité
B23: Flux absolu

Sheet Data
A1: 4323.897 | B1: -2.435649045e-28 | C1: =+IF(AND(A1>Analyse1!$E$3,Data!A1<Analyse1!$E$4),B1,"") ->  | D1: =+B1/Analyse1!$H$3*Analyse1!$H$4 -> -3.727105444e-42
A2: 4324.897 | B2: 6.82517478e-24 | C2: =+IF(AND(A2>Analyse1!$E$3,Data!A2<Analyse1!$E$4),B2,"") ->  | D2: =+B2/Analyse1!$H$3*Analyse1!$H$4 -> 1.044409339e-37
A3: 4325.897 | B3: 9.486282889e-24 | C3: =+IF(AND(A3>Analyse1!$E$3,Data!A3<Analyse1!$E$4),B3,"") ->  | D3: =+B3/Analyse1!$H$3*Analyse1!$H$4 -> 1.451620326e-37
A4: 4326.897 | B4: 7.983080761e-24 | C4: =+IF(AND(A4>Analyse1!$E$3,Data!A4<Analyse1!$E$4),B4,"") ->  | D4: =+B4/Analyse1!$H$3*Analyse1!$H$4 -> 1.22159569e-37
A5: 4327.897 | B5: 2.315568398e-24 | C5: =+IF(AND(A5>Analyse1!$E$3,Data!A5<Analyse1!$E$4),B5,"") ->  | D5: =+B5/Analyse1!$H$3*Analyse1!$H$4 -> 3.543354327e-38
A6: 4328.897 | B6: -7.1499309e-24 | C6: =+IF(AND(A6>Analyse1!$E$3,Data!A6<Analyse1!$E$4),B6,"") ->  | D6: =+B6/Analyse1!$H$3*Analyse1!$H$4 -> -1.094104524e-37
A7: 4329.897 | B7: -1.654210482e-23 | C7: =+IF(AND(A7>Analyse1!$E$3,Data!A7<Analyse1!$E$4),B7,"") ->  | D7: =+B7/Analyse1!$H$3*Analyse1!$H$4 -> -2.531324005e-37
A8: 4330.897 | B8: -2.004132621e-23 | C8: =+IF(AND(A8>Analyse1!$E$3,Data!A8<Analyse1!$E$4),B8,"") ->  | D8: =+B8/Analyse1!$H$3*Analyse1!$H$4 -> -3.066785675e-37
A9: 4331.897 | B9: -1.180704774e-23 | C9: =+IF(AND(A9>Analyse1!$E$3,Data!A9<Analyse1!$E$4),B9,"") ->  | D9: =+B9/Analyse1!$H$3*Analyse1!$H$4 -> -1.806750935e-37
A10: 4332.897 | B10: 1.357534522e-23 | C10: =+IF(AND(A10>Analyse1!$E$3,Data!A10<Analyse1!$E$4),B10,"") ->  | D10: =+B10/Analyse1!$H$3*Analyse1!$H$4 -> 2.077341281e-37
A11: 4333.897 | B11: 4.857043351e-23 | C11: =+IF(AND(A11>Analyse1!$E$3,Data!A11<Analyse1!$E$4),B11,"") ->  | D11: =+B11/Analyse1!$H$3*Analyse1!$H$4 -> 7.432397846e-37
A12: 4334.897 | B12: 7.065271049e-23 | C12: =+IF(AND(A12>Analyse1!$E$3,Data!A12<Analyse1!$E$4),B12,"") ->  | D12: =+B12/Analyse1!$H$3*Analyse1!$H$4 -> 1.081149612e-36
A13: 4335.897 | B13: 5.645998691e-23 | C13: =+IF(AND(A13>Analyse1!$E$3,Data!A13<Analyse1!$E$4),B13,"") ->  | D13: =+B13/Analyse1!$H$3*Analyse1!$H$4 -> 8.639681691e-37
A14: 4336.897 | B14: -1.72853664e-23 | C14: =+IF(AND(A14>Analyse1!$E$3,Data!A14<Analyse1!$E$4),B14,"") ->  | D14: =+B14/Analyse1!$H$3*Analyse1!$H$4 -> -2.645060188e-37
A15: 4337.897 | B15: -1.4488212e-22 | C15: =+IF(AND(A15>Analyse1!$E$3,Data!A15<Analyse1!$E$4),B15,"") ->  | D15: =+B15/Analyse1!$H$3*Analyse1!$H$4 -> -2.217030977e-36
A16: 4338.897 | B16: -2.49451991e-22 | C16: =+IF(AND(A16>Analyse1!$E$3,Data!A16<Analyse1!$E$4),B16,"") ->  | D16: =+B16/Analyse1!$H$3*Analyse1!$H$4 -> -3.817191461e-36
A17: 4339.897 | B17: -2.433867698e-22 | C17: =+IF(AND(A17>Analyse1!$E$3,Data!A17<Analyse1!$E$4),B17,"") ->  | D17: =+B17/Analyse1!$H$3*Analyse1!$H$4 -> -3.724379572e-36
A18: 4340.897 | B18: -3.907824655e-23 | C18: =+IF(AND(A18>Analyse1!$E$3,Data!A18<Analyse1!$E$4),B18,"") ->  | D18: =+B18/Analyse1!$H$3*Analyse1!$H$4 -> -5.979874061e-37
A19: 4341.897 | B19: 4.02691365e-22 | C19: =+IF(AND(A19>Analyse1!$E$3,Data!A19<Analyse1!$E$4),B19,"") ->  | D19: =+B19/Analyse1!$H$3*Analyse1!$H$4 -> 6.162107721e-36
A20: 4342.897 | B20: 8.496000395e-22 | C20: =+IF(AND(A20>Analyse1!$E$3,Data!A20<Analyse1!$E$4),B20,"") ->  | D20: =+B20/Analyse1!$H$3*Analyse1!$H$4 -> 1.300084238e-35
A21: 4343.897 | B21: 9.746742976e-22 | C21: =+IF(AND(A21>Analyse1!$E$3,Data!A21<Analyse1!$E$4),B21,"") ->  | D21: =+B21/Analyse1!$H$3*Analyse1!$H$4 -> 1.491476733e-35
A22: 4344.897 | B22: 4.508434895e-22 | C22: =+IF(AND(A22>Analyse1!$E$3,Data!A22<Analyse1!$E$4),B22,"") ->  | D22: =+B22/Analyse1!$H$3*Analyse1!$H$4 -> 6.898946413e-36
A23: 4345.897 | B23: -9.904194552e-22 | C23: =+IF(AND(A23>Analyse1!$E$3,Data!A23<Analyse1!$E$4),B23,"") ->  | D23: =+B23/Analyse1!$H$3*Analyse1!$H$4 -> -1.51557046e-35
A24: 4346.897 | B24: -2.775341613e-21 | C24: =+IF(AND(A24>Analyse1!$E$3,Data!A24<Analyse1!$E$4),B24,"") ->  | D24: =+B24/Analyse1!$H$3*Analyse1!$H$4 -> -4.24691351e-35
A25: 4347.897 | B25: -3.698553595e-21 | C25: =+IF(AND(A25>Analyse1!$E$3,Data!A25<Analyse1!$E$4),B25,"") ->  | D25: =+B25/Analyse1!$H$3*Analyse1!$H$4 -> -5.659641017e-35
A26: 4348.897 | B26: -2.539381012e-21 | C26: =+IF(AND(A26>Analyse1!$E$3,Data!A26<Analyse1!$E$4),B26,"") ->  | D26: =+B26/Analyse1!$H$3*Analyse1!$H$4 -> -3.885839306e-35
A27: 4349.897 | B27: 1.887629213e-21 | C27: =+IF(AND(A27>Analyse1!$E$3,Data!A27<Analyse1!$E$4),B27,"") ->  | D27: =+B27/Analyse1!$H$3*Analyse1!$H$4 -> 2.888508561e-35
A28: 4350.897 | B28: 8.633799087e-21 | C28: =+IF(AND(A28>Analyse1!$E$3,Data!A28<Analyse1!$E$4),B28,"") ->  | D28: =+B28/Analyse1!$H$3*Analyse1!$H$4 -> 1.32117062e-34
A29: 4351.897 | B29: 1.343050131e-20 | C29: =+IF(AND(A29>Analyse1!$E$3,Data!A29<Analyse1!$E$4),B29,"") ->  | D29: =+B29/Analyse1!$H$3*Analyse1!$H$4 -> 2.055176819e-34
A30: 4352.897 | B30: 1.172210899e-20 | C30: =+IF(AND(A30>Analyse1!$E$3,Data!A30<Analyse1!$E$4),B30,"") ->  | D30: =+B30/Analyse1!$H$3*Analyse1!$H$4 -> 1.793753345e-34
A31: 4353.897 | B31: -1.046439908e-21 | C31: =+IF(AND(A31>Analyse1!$E$3,Data!A31<Analyse1!$E$4),B31,"") ->  | D31: =+B31/Analyse1!$H$3*Analyse1!$H$4 -> -1.601294688e-35
A32: 4354.897 | B32: -2.522583639e-20 | C32: =+IF(AND(A32>Analyse1!$E$3,Data!A32<Analyse1!$E$4),B32,"") ->  | D32: =+B32/Analyse1!$H$3*Analyse1!$H$4 -> -3.860135447e-34
A33: 4355.897 | B33: -4.685623462e-20 | C33: =+IF(AND(A33>Analyse1!$E$3,Data!A33<Analyse1!$E$4),B33,"") ->  | D33: =+B33/Analyse1!$H$3*Analyse1!$H$4 -> -7.170085834e-34
A34: 4356.897 | B34: -4.893580136e-20 | C34: =+IF(AND(A34>Analyse1!$E$3,Data!A34<Analyse1!$E$4),B34,"") ->  | D34: =+B34/Analyse1!$H$3*Analyse1!$H$4 -> -7.488307563e-34
A35: 4357.897 | B35: -1.446270337e-20 | C35: =+IF(AND(A35>Analyse1!$E$3,Data!A35<Analyse1!$E$4),B35,"") ->  | D35: =+B35/Analyse1!$H$3*Analyse1!$H$4 -> -2.213127567e-34
A36: 4358.897 | B36: 6.72997183e-20 | C36: =+IF(AND(A36>Analyse1!$E$3,Data!A36<Analyse1!$E$4),B36,"") ->  | D36: =+B36/Analyse1!$H$3*Analyse1!$H$4 -> 1.029841089e-33
A37: 4359.897 | B37: 1.570379608e-19 | C37: =+IF(AND(A37>Analyse1!$E$3,Data!A37<Analyse1!$E$4),B37,"") ->  | D37: =+B37/Analyse1!$H$3*Analyse1!$H$4 -> 2.40304341e-33
A38: 4360.897 | B38: 1.914510819e-19 | C38: =+IF(AND(A38>Analyse1!$E$3,Data!A38<Analyse1!$E$4),B38,"") ->  | D38: =+B38/Analyse1!$H$3*Analyse1!$H$4 -> 2.929643625e-33
A39: 4361.897 | B39: 1.070873756e-19 | C39: =+IF(AND(A39>Analyse1!$E$3,Data!A39<Analyse1!$E$4),B39,"") ->  | D39: =+B39/Analyse1!$H$3*Analyse1!$H$4 -> 1.638684117e-33
A40: 4362.897 | B40: -1.533252988e-19 | C40: =+IF(AND(A40>Analyse1!$E$3,Data!A40<Analyse1!$E$4),B40,"") ->  | D40: =+B40/Analyse1!$H$3*Analyse1!$H$4 -> -2.346231108e-33
A41: 4363.897 | B41: -5.035668404e-19 | C41: =+IF(AND(A41>Analyse1!$E$3,Data!A41<Analyse1!$E$4),B41,"") ->  | D41: =+B41/Analyse1!$H$3*Analyse1!$H$4 -> -7.705735424e-33
A42: 4364.897 | B42: -7.131640058e-19 | C42: =+IF(AND(A42>Analyse1!$E$3,Data!A42<Analyse1!$E$4),B42,"") ->  | D42: =+B42/Analyse1!$H$3*Analyse1!$H$4 -> -1.091305603e-32
A43: 4365.897 | B43: -5.453118039e-19 | C43: =+IF(AND(A43>Analyse1!$E$3,Data!A43<Analyse1!$E$4),B43,"") ->  | D43: =+B43/Analyse1!$H$3*Analyse1!$H$4 -> -8.344529756e-33
A44: 4366.897 | B44: 2.348068536e-19 | C44: =+IF(AND(A44>Analyse1!$E$3,Data!A44<Analyse1!$E$4),B44,"") ->  | D44: =+B44/Analyse1!$H$3*Analyse1!$H$4 -> 3.593087042e-33
A45: 4367.897 | B45: 1.530851686e-18 | C45: =+IF(AND(A45>Analyse1!$E$3,Data!A45<Analyse1!$E$4),B45,"") ->  | D45: =+B45/Analyse1!$H$3*Analyse1!$H$4 -> 2.342556561e-32
A46: 4368.897 | B46: 2.547692135e-18 | C46: =+IF(AND(A46>Analyse1!$E$3,Data!A46<Analyse1!$E$4),B46,"") ->  | D46: =+B46/Analyse1!$H$3*Analyse1!$H$4 -> 3.898557243e-32
A47: 4369.897 | B47: 2.401559944e-18 | C47: =+IF(AND(A47>Analyse1!$E$3,Data!A47<Analyse1!$E$4),B47,"") ->  | D47: =+B47/Analyse1!$H$3*Analyse1!$H$4 -> 3.674941249e-32
A48: 4370.897 | B48: 2.086868556e-19 | C48: =+IF(AND(A48>Analyse1!$E$3,Data!A48<Analyse1!$E$4),B48,"") ->  | D48: =+B48/Analyse1!$H$3*Analyse1!$H$4 -> 3.19339076e-33
A49: 4371.897 | B49: -4.332120935e-18 | C49: =+IF(AND(A49>Analyse1!$E$3,Data!A49<Analyse1!$E$4),B49,"") ->  | D49: =+B49/Analyse1!$H$3*Analyse1!$H$4 -> -6.629145343e-32
A50: 4372.897 | B50: -8.747706114e-18 | C50: =+IF(AND(A50>Analyse1!$E$3,Data!A50<Analyse1!$E$4),B50,"") ->  | D50: =+B50/Analyse1!$H$3*Analyse1!$H$4 -> -1.338601025e-31
A51: 4373.897 | B51: -9.739936826e-18 | C51: =+IF(AND(A51>Analyse1!$E$3,Data!A51<Analyse1!$E$4),B51,"") ->  | D51: =+B51/Analyse1!$H$3*Analyse1!$H$4 -> -1.490435235e-31
A52: 4374.897 | B52: -4.010545032e-18 | C52: =+IF(AND(A52>Analyse1!$E$3,Data!A52<Analyse1!$E$4),B52,"") ->  | D52: =+B52/Analyse1!$H$3*Analyse1!$H$4 -> -6.137059957e-32
A53: 4375.897 | B53: 1.097729908e-17 | C53: =+IF(AND(A53>Analyse1!$E$3,Data!A53<Analyse1!$E$4),B53,"") ->  | D53: =+B53/Analyse1!$H$3*Analyse1!$H$4 -> 1.679780231e-31
A54: 4376.897 | B54: 2.882160286e-17 | C54: =+IF(AND(A54>Analyse1!$E$3,Data!A54<Analyse1!$E$4),B54,"") ->  | D54: =+B54/Analyse1!$H$3*Analyse1!$H$4 -> 4.410370745e-31
A55: 4377.897 | B55: 3.731176033e-17 | C55: =+IF(AND(A55>Analyse1!$E$3,Data!A55<Analyse1!$E$4),B55,"") ->  | D55: =+B55/Analyse1!$H$3*Analyse1!$H$4 -> 5.70956088e-31
A56: 4378.897 | B56: 2.413846758e-17 | C56: =+IF(AND(A56>Analyse1!$E$3,Data!A56<Analyse1!$E$4),B56,"") ->  | D56: =+B56/Analyse1!$H$3*Analyse1!$H$4 -> 3.693742911e-31
A57: 4379.897 | B57: -2.244936459e-17 | C57: =+IF(AND(A57>Analyse1!$E$3,Data!A57<Analyse1!$E$4),B57,"") ->  | D57: =+B57/Analyse1!$H$3*Analyse1!$H$4 -> -3.435271152e-31
A58: 4380.897 | B58: -9.058954793e-17 | C58: =+IF(AND(A58>Analyse1!$E$3,Data!A58<Analyse1!$E$4),B58,"") ->  | D58: =+B58/Analyse1!$H$3*Analyse1!$H$4 -> -1.38622926e-30
A59: 4381.897 | B59: -1.365906094e-16 | C59: =+IF(AND(A59>Analyse1!$E$3,Data!A59<Analyse1!$E$4),B59,"") ->  | D59: =+B59/Analyse1!$H$3*Analyse1!$H$4 -> -2.090151719e-30
A60: 4382.897 | B60: -1.145136014e-16 | C60: =+IF(AND(A60>Analyse1!$E$3,Data!A60<Analyse1!$E$4),B60,"") ->  | D60: =+B60/Analyse1!$H$3*Analyse1!$H$4 -> -1.752322519e-30
A61: 4383.897 | B61: 2.15348178e-17 | C61: =+IF(AND(A61>Analyse1!$E$3,Data!A61<Analyse1!$E$4),B61,"") ->  | D61: =+B61/Analyse1!$H$3*Analyse1!$H$4 -> 3.295324374e-31
A62: 4384.897 | B62: 2.683509104e-16 | C62: =+IF(AND(A62>Analyse1!$E$3,Data!A62<Analyse1!$E$4),B62,"") ->  | D62: =+B62/Analyse1!$H$3*Analyse1!$H$4 -> 4.106388567e-30
A63: 4385.897 | B63: 4.802047985e-16 | C63: =+IF(AND(A63>Analyse1!$E$3,Data!A63<Analyse1!$E$4),B63,"") ->  | D63: =+B63/Analyse1!$H$3*Analyse1!$H$4 -> 7.348242238e-30
A64: 4386.897 | B64: 4.856499958e-16 | C64: =+IF(AND(A64>Analyse1!$E$3,Data!A64<Analyse1!$E$4),B64,"") ->  | D64: =+B64/Analyse1!$H$3*Analyse1!$H$4 -> 7.431566329e-30
A65: 4387.897 | B65: 1.132400158e-16 | C65: =+IF(AND(A65>Analyse1!$E$3,Data!A65<Analyse1!$E$4),B65,"") ->  | D65: =+B65/Analyse1!$H$3*Analyse1!$H$4 -> 1.732833719e-30
A66: 4388.897 | B66: -7.311647575e-16 | C66: =+IF(AND(A66>Analyse1!$E$3,Data!A66<Analyse1!$E$4),B66,"") ->  | D66: =+B66/Analyse1!$H$3*Analyse1!$H$4 -> -1.118850909e-29
A67: 4389.897 | B67: -1.622301638e-15 | C67: =+IF(AND(A67>Analyse1!$E$3,Data!A67<Analyse1!$E$4),B67,"") ->  | D67: =+B67/Analyse1!$H$3*Analyse1!$H$4 -> -2.482496105e-29
A68: 4390.897 | B68: -1.920988262e-15 | C68: =+IF(AND(A68>Analyse1!$E$3,Data!A68<Analyse1!$E$4),B68,"") ->  | D68: =+B68/Analyse1!$H$3*Analyse1!$H$4 -> -2.939555608e-29
A69: 4391.897 | B69: -9.873776326e-16 | C69: =+IF(AND(A69>Analyse1!$E$3,Data!A69<Analyse1!$E$4),B69,"") ->  | D69: =+B69/Analyse1!$H$3*Analyse1!$H$4 -> -1.510915769e-29
A70: 4392.897 | B70: 1.733512569e-15 | C70: =+IF(AND(A70>Analyse1!$E$3,Data!A70<Analyse1!$E$4),B70,"") ->  | D70: =+B70/Analyse1!$H$3*Analyse1!$H$4 -> 2.652674508e-29
A71: 4393.897 | B71: 5.249755117e-15 | C71: =+IF(AND(A71>Analyse1!$E$3,Data!A71<Analyse1!$E$4),B71,"") ->  | D71: =+B71/Analyse1!$H$3*Analyse1!$H$4 -> 8.033337527e-29
A72: 4394.897 | B72: 7.218790947e-15 | C72: =+IF(AND(A72>Analyse1!$E$3,Data!A72<Analyse1!$E$4),B72,"") ->  | D72: =+B72/Analyse1!$H$3*Analyse1!$H$4 -> 1.104641701e-28
A73: 4395.897 | B73: 5.252678554e-15 | C73: =+IF(AND(A73>Analyse1!$E$3,Data!A73<Analyse1!$E$4),B73,"") ->  | D73: =+B73/Analyse1!$H$3*Analyse1!$H$4 -> 8.037811061e-29
A74: 4396.897 | B74: -2.997793925e-15 | C74: =+IF(AND(A74>Analyse1!$E$3,Data!A74<Analyse1!$E$4),B74,"") ->  | D74: =+B74/Analyse1!$H$3*Analyse1!$H$4 -> -4.587316912e-29
A75: 4397.897 | B75: -1.614270128e-14 | C75: =+IF(AND(A75>Analyse1!$E$3,Data!A75<Analyse1!$E$4),B75,"") ->  | D75: =+B75/Analyse1!$H$3*Analyse1!$H$4 -> -2.47020604e-28
A76: 4398.897 | B76: -2.599086804e-14 | C76: =+IF(AND(A76>Analyse1!$E$3,Data!A76<Analyse1!$E$4),B76,"") ->  | D76: =+B76/Analyse1!$H$3*Analyse1!$H$4 -> -3.977202955e-28
A77: 4399.897 | B77: -2.363037519e-14 | C77: =+IF(AND(A77>Analyse1!$E$3,Data!A77<Analyse1!$E$4),B77,"") ->  | D77: =+B77/Analyse1!$H$3*Analyse1!$H$4 -> -3.615993043e-28
A78: 4400.897 | B78: -1.493037019e-16 | C78: =+IF(AND(A78>Analyse1!$E$3,Data!A78<Analyse1!$E$4),B78,"") ->  | D78: =+B78/Analyse1!$H$3*Analyse1!$H$4 -> -2.284691389e-30
A79: 4401.897 | B79: 4.642023484e-14 | C79: =+IF(AND(A79>Analyse1!$E$3,Data!A79<Analyse1!$E$4),B79,"") ->  | D79: =+B79/Analyse1!$H$3*Analyse1!$H$4 -> 7.103367801e-28
A80: 4402.897 | B80: 8.993237575e-14 | C80: =+IF(AND(A80>Analyse1!$E$3,Data!A80<Analyse1!$E$4),B80,"") ->  | D80: =+B80/Analyse1!$H$3*Analyse1!$H$4 -> 1.376173008e-27
A81: 4403.897 | B81: 9.71273849e-14 | C81: =+IF(AND(A81>Analyse1!$E$3,Data!A81<Analyse1!$E$4),B81,"") ->  | D81: =+B81/Analyse1!$H$3*Analyse1!$H$4 -> 1.486273262e-27
A82: 4404.897 | B82: 3.47455277e-14 | C82: =+IF(AND(A82>Analyse1!$E$3,Data!A82<Analyse1!$E$4),B82,"") ->  | D82: =+B82/Analyse1!$H$3*Analyse1!$H$4 -> 5.316868032e-28
A83: 4405.897 | B83: -1.207646874e-13 | C83: =+IF(AND(A83>Analyse1!$E$3,Data!A83<Analyse1!$E$4),B83,"") ->  | D83: =+B83/Analyse1!$H$3*Analyse1!$H$4 -> -1.847978569e-27
A84: 4406.897 | B84: -2.987834279e-13 | C84: =+IF(AND(A84>Analyse1!$E$3,Data!A84<Analyse1!$E$4),B84,"") ->  | D84: =+B84/Analyse1!$H$3*Analyse1!$H$4 -> -4.572076355e-27
A85: 4407.897 | B85: -3.757720989e-13 | C85: =+IF(AND(A85>Analyse1!$E$3,Data!A85<Analyse1!$E$4),B85,"") ->  | D85: =+B85/Analyse1!$H$3*Analyse1!$H$4 -> -5.750180793e-27
A86: 4408.897 | B86: -2.27603681e-13 | C86: =+IF(AND(A86>Analyse1!$E$3,Data!A86<Analyse1!$E$4),B86,"") ->  | D86: =+B86/Analyse1!$H$3*Analyse1!$H$4 -> -3.48286187e-27
A87: 4409.897 | B87: 2.615112358e-13 | C87: =+IF(AND(A87>Analyse1!$E$3,Data!A87<Analyse1!$E$4),B87,"") ->  | D87: =+B87/Analyse1!$H$3*Analyse1!$H$4 -> 4.001725753e-27
A88: 4410.897 | B88: 9.484135782e-13 | C88: =+IF(AND(A88>Analyse1!$E$3,Data!A88<Analyse1!$E$4),B88,"") ->  | D88: =+B88/Analyse1!$H$3*Analyse1!$H$4 -> 1.451291769e-26
A89: 4411.897 | B89: 1.387049607e-12 | C89: =+IF(AND(A89>Analyse1!$E$3,Data!A89<Analyse1!$E$4),B89,"") ->  | D89: =+B89/Analyse1!$H$3*Analyse1!$H$4 -> 2.122506177e-26
A90: 4412.897 | B90: 1.11417098e-12 | C90: =+IF(AND(A90>Analyse1!$E$3,Data!A90<Analyse1!$E$4),B90,"") ->  | D90: =+B90/Analyse1!$H$3*Analyse1!$H$4 -> 1.704938868e-26
A91: 4413.897 | B91: -3.31918126e-13 | C91: =+IF(AND(A91>Analyse1!$E$3,Data!A91<Analyse1!$E$4),B91,"") ->  | D91: =+B91/Analyse1!$H$3*Analyse1!$H$4 -> -5.079113746e-27
A92: 4414.897 | B92: -2.845932105e-12 | C92: =+IF(AND(A92>Analyse1!$E$3,Data!A92<Analyse1!$E$4),B92,"") ->  | D92: =+B92/Analyse1!$H$3*Analyse1!$H$4 -> -4.354933263e-26
A93: 4415.897 | B93: -4.914028434e-12 | C93: =+IF(AND(A93>Analyse1!$E$3,Data!A93<Analyse1!$E$4),B93,"") ->  | D93: =+B93/Analyse1!$H$3*Analyse1!$H$4 -> -7.519598182e-26
A94: 4416.897 | B94: -4.807340762e-12 | C94: =+IF(AND(A94>Analyse1!$E$3,Data!A94<Analyse1!$E$4),B94,"") ->  | D94: =+B94/Analyse1!$H$3*Analyse1!$H$4 -> -7.356341409e-26
A95: 4417.897 | B95: -7.970027377e-13 | C95: =+IF(AND(A95>Analyse1!$E$3,Data!A95<Analyse1!$E$4),B95,"") ->  | D95: =+B95/Analyse1!$H$3*Analyse1!$H$4 -> -1.219598221e-26
A96: 4418.897 | B96: 7.904014304e-12 | C96: =+IF(AND(A96>Analyse1!$E$3,Data!A96<Analyse1!$E$4),B96,"") ->  | D96: =+B96/Analyse1!$H$3*Analyse1!$H$4 -> 1.209496697e-25
A97: 4419.897 | B97: 1.673243056e-11 | C97: =+IF(AND(A97>Analyse1!$E$3,Data!A97<Analyse1!$E$4),B97,"") ->  | D97: =+B97/Analyse1!$H$3*Analyse1!$H$4 -> 2.560448237e-25
A98: 4420.897 | B98: 1.923815876e-11 | C98: =+IF(AND(A98>Analyse1!$E$3,Data!A98<Analyse1!$E$4),B98,"") ->  | D98: =+B98/Analyse1!$H$3*Analyse1!$H$4 -> 2.943882511e-25
A99: 4421.897 | B99: 8.968981864e-12 | C99: =+IF(AND(A99>Analyse1!$E$3,Data!A99<Analyse1!$E$4),B99,"") ->  | D99: =+B99/Analyse1!$H$3*Analyse1!$H$4 -> 1.372461324e-25
A100: 4422.897 | B100: -1.939500497e-11 | C100: =+IF(AND(A100>Analyse1!$E$3,Data!A100<Analyse1!$E$4),B100,"") ->  | D100: =+B100/Analyse1!$H$3*Analyse1!$H$4 -> -2.967883602e-25
A101: 4423.897 | B101: -5.462533613e-11 | C101: =+IF(AND(A101>Analyse1!$E$3,Data!A101<Analyse1!$E$4),B101,"") ->  | D101: =+B101/Analyse1!$H$3*Analyse1!$H$4 -> -8.358937759e-25
A102: 4424.897 | B102: -7.29533148e-11 | C102: =+IF(AND(A102>Analyse1!$E$3,Data!A102<Analyse1!$E$4),B102,"") ->  | D102: =+B102/Analyse1!$H$3*Analyse1!$H$4 -> -1.11635417e-24
A103: 4425.897 | B103: -5.029893908e-11 | C103: =+IF(AND(A103>Analyse1!$E$3,Data!A103<Analyse1!$E$4),B103,"") ->  | D103: =+B103/Analyse1!$H$3*Analyse1!$H$4 -> -7.696899111e-25
A104: 4426.897 | B104: 3.674780408e-11 | C104: =+IF(AND(A104>Analyse1!$E$3,Data!A104<Analyse1!$E$4),B104,"") ->  | D104: =+B104/Analyse1!$H$3*Analyse1!$H$4 -> 5.623262552e-25
A105: 4427.897 | B105: 1.698012577e-10 | C105: =+IF(AND(A105>Analyse1!$E$3,Data!A105<Analyse1!$E$4),B105,"") ->  | D105: =+B105/Analyse1!$H$3*Analyse1!$H$4 -> 2.598351324e-24
A106: 4428.897 | B106: 2.647575189e-10 | C106: =+IF(AND(A106>Analyse1!$E$3,Data!A106<Analyse1!$E$4),B106,"") ->  | D106: =+B106/Analyse1!$H$3*Analyse1!$H$4 -> 4.05140138e-24
A107: 4429.897 | B107: 2.31748797e-10 | C107: =+IF(AND(A107>Analyse1!$E$3,Data!A107<Analyse1!$E$4),B107,"") ->  | D107: =+B107/Analyse1!$H$3*Analyse1!$H$4 -> 3.546291716e-24
A108: 4430.897 | B108: -1.908385339e-11 | C108: =+IF(AND(A108>Analyse1!$E$3,Data!A108<Analyse1!$E$4),B108,"") ->  | D108: =+B108/Analyse1!$H$3*Analyse1!$H$4 -> -2.920270226e-25
A109: 4431.897 | B109: -4.95592769e-10 | C109: =+IF(AND(A109>Analyse1!$E$3,Data!A109<Analyse1!$E$4),B109,"") ->  | D109: =+B109/Analyse1!$H$3*Analyse1!$H$4 -> -7.583713719e-24
A110: 4432.897 | B110: -9.231597692e-10 | C110: =+IF(AND(A110>Analyse1!$E$3,Data!A110<Analyse1!$E$4),B110,"") ->  | D110: =+B110/Analyse1!$H$3*Analyse1!$H$4 -> -1.41264761e-23
A111: 4433.897 | B111: -9.663936936e-10 | C111: =+IF(AND(A111>Analyse1!$E$3,Data!A111<Analyse1!$E$4),B111,"") ->  | D111: =+B111/Analyse1!$H$3*Analyse1!$H$4 -> -1.478805497e-23
A112: 4434.897 | B112: -2.89903382e-10 | C112: =+IF(AND(A112>Analyse1!$E$3,Data!A112<Analyse1!$E$4),B112,"") ->  | D112: =+B112/Analyse1!$H$3*Analyse1!$H$4 -> -4.436191148e-24
A113: 4435.897 | B113: 1.320012151e-09 | C113: =+IF(AND(A113>Analyse1!$E$3,Data!A113<Analyse1!$E$4),B113,"") ->  | D113: =+B113/Analyse1!$H$3*Analyse1!$H$4 -> 2.01992339e-23
A114: 4436.897 | B114: 3.092109445e-09 | C114: =+IF(AND(A114>Analyse1!$E$3,Data!A114<Analyse1!$E$4),B114,"") ->  | D114: =+B114/Analyse1!$H$3*Analyse1!$H$4 -> 4.731641437e-23
A115: 4437.897 | B115: 3.777827897e-09 | C115: =+IF(AND(A115>Analyse1!$E$3,Data!A115<Analyse1!$E$4),B115,"") ->  | D115: =+B115/Analyse1!$H$3*Analyse1!$H$4 -> 5.780949005e-23
A116: 4438.897 | B116: 2.125470658e-09 | C116: =+IF(AND(A116>Analyse1!$E$3,Data!A116<Analyse1!$E$4),B116,"") ->  | D116: =+B116/Analyse1!$H$3*Analyse1!$H$4 -> 3.25246089e-23
A117: 4439.897 | B117: -2.997670337e-09 | C117: =+IF(AND(A117>Analyse1!$E$3,Data!A117<Analyse1!$E$4),B117,"") ->  | D117: =+B117/Analyse1!$H$3*Analyse1!$H$4 -> -4.587127795e-23
A118: 4440.897 | B118: -9.908520349e-09 | C118: =+IF(AND(A118>Analyse1!$E$3,Data!A118<Analyse1!$E$4),B118,"") ->  | D118: =+B118/Analyse1!$H$3*Analyse1!$H$4 -> -1.516232407e-22
A119: 4441.897 | B119: -1.406359748e-08 | C119: =+IF(AND(A119>Analyse1!$E$3,Data!A119<Analyse1!$E$4),B119,"") ->  | D119: =+B119/Analyse1!$H$3*Analyse1!$H$4 -> -2.152055151e-22
A120: 4442.897 | B120: -1.07915055e-08 | C120: =+IF(AND(A120>Analyse1!$E$3,Data!A120<Analyse1!$E$4),B120,"") ->  | D120: =+B120/Analyse1!$H$3*Analyse1!$H$4 -> -1.651349523e-22
A121: 4443.897 | B121: 4.542037554e-09 | C121: =+IF(AND(A121>Analyse1!$E$3,Data!A121<Analyse1!$E$4),B121,"") ->  | D121: =+B121/Analyse1!$H$3*Analyse1!$H$4 -> 6.950366241e-23
A122: 4444.897 | B122: 3.009583243e-08 | C122: =+IF(AND(A122>Analyse1!$E$3,Data!A122<Analyse1!$E$4),B122,"") ->  | D122: =+B122/Analyse1!$H$3*Analyse1!$H$4 -> 4.605357292e-22
A123: 4445.897 | B123: 5.021156381e-08 | C123: =+IF(AND(A123>Analyse1!$E$3,Data!A123<Analyse1!$E$4),B123,"") ->  | D123: =+B123/Analyse1!$H$3*Analyse1!$H$4 -> 7.683528676e-22
A124: 4446.897 | B124: 4.745534358e-08 | C124: =+IF(AND(A124>Analyse1!$E$3,Data!A124<Analyse1!$E$4),B124,"") ->  | D124: =+B124/Analyse1!$H$3*Analyse1!$H$4 -> 7.261763338e-22
A125: 4447.897 | B125: 4.39328362e-09 | C125: =+IF(AND(A125>Analyse1!$E$3,Data!A125<Analyse1!$E$4),B125,"") ->  | D125: =+B125/Analyse1!$H$3*Analyse1!$H$4 -> 6.722738373e-23
A126: 4448.897 | B126: -8.506197754e-08 | C126: =+IF(AND(A126>Analyse1!$E$3,Data!A126<Analyse1!$E$4),B126,"") ->  | D126: =+B126/Analyse1!$H$3*Analyse1!$H$4 -> -1.301644669e-21
A127: 4449.897 | B127: -1.723066636e-07 | C127: =+IF(AND(A127>Analyse1!$E$3,Data!A127<Analyse1!$E$4),B127,"") ->  | D127: =+B127/Analyse1!$H$3*Analyse1!$H$4 -> -2.636689819e-21
A128: 4450.897 | B128: -1.922798996e-07 | C128: =+IF(AND(A128>Analyse1!$E$3,Data!A128<Analyse1!$E$4),B128,"") ->  | D128: =+B128/Analyse1!$H$3*Analyse1!$H$4 -> -2.942326449e-21
A129: 4451.897 | B129: -7.991752936e-08 | C129: =+IF(AND(A129>Analyse1!$E$3,Data!A129<Analyse1!$E$4),B129,"") ->  | D129: =+B129/Analyse1!$H$3*Analyse1!$H$4 -> -1.222922733e-21
A130: 4452.897 | B130: 2.150937286e-07 | C130: =+IF(AND(A130>Analyse1!$E$3,Data!A130<Analyse1!$E$4),B130,"") ->  | D130: =+B130/Analyse1!$H$3*Analyse1!$H$4 -> 3.291430711e-21
A131: 4453.897 | B131: 5.673546235e-07 | C131: =+IF(AND(A131>Analyse1!$E$3,Data!A131<Analyse1!$E$4),B131,"") ->  | D131: =+B131/Analyse1!$H$3*Analyse1!$H$4 -> 8.681835795e-21
A132: 4454.897 | B132: 7.360597699e-07 | C132: =+IF(AND(A132>Analyse1!$E$3,Data!A132<Analyse1!$E$4),B132,"") ->  | D132: =+B132/Analyse1!$H$3*Analyse1!$H$4 -> 1.126341408e-20
A133: 4455.897 | B133: 4.783864308e-07 | C133: =+IF(AND(A133>Analyse1!$E$3,Data!A133<Analyse1!$E$4),B133,"") ->  | D133: =+B133/Analyse1!$H$3*Analyse1!$H$4 -> 7.320417013e-21
A134: 4456.897 | B134: -4.378151843e-07 | C134: =+IF(AND(A134>Analyse1!$E$3,Data!A134<Analyse1!$E$4),B134,"") ->  | D134: =+B134/Analyse1!$H$3*Analyse1!$H$4 -> -6.69958326e-21
A135: 4457.897 | B135: -1.78192775e-06 | C135: =+IF(AND(A135>Analyse1!$E$3,Data!A135<Analyse1!$E$4),B135,"") ->  | D135: =+B135/Analyse1!$H$3*Analyse1!$H$4 -> -2.726760915e-20
A136: 4458.897 | B136: -2.692931983e-06 | C136: =+IF(AND(A136>Analyse1!$E$3,Data!A136<Analyse1!$E$4),B136,"") ->  | D136: =+B136/Analyse1!$H$3*Analyse1!$H$4 -> -4.120807748e-20
A137: 4459.897 | B137: -2.264601094e-06 | C137: =+IF(AND(A137>Analyse1!$E$3,Data!A137<Analyse1!$E$4),B137,"") ->  | D137: =+B137/Analyse1!$H$3*Analyse1!$H$4 -> -3.465362583e-20
A138: 4460.897 | B138: 4.084883822e-07 | C138: =+IF(AND(A138>Analyse1!$E$3,Data!A138<Analyse1!$E$4),B138,"") ->  | D138: =+B138/Analyse1!$H$3*Analyse1!$H$4 -> 6.250815471e-21
A139: 4461.897 | B139: 5.273338806e-06 | C139: =+IF(AND(A139>Analyse1!$E$3,Data!A139<Analyse1!$E$4),B139,"") ->  | D139: =+B139/Analyse1!$H$3*Analyse1!$H$4 -> 8.069426018e-20
A140: 4462.897 | B140: 9.4620264e-06 | C140: =+IF(AND(A140>Analyse1!$E$3,Data!A140<Analyse1!$E$4),B140,"") ->  | D140: =+B140/Analyse1!$H$3*Analyse1!$H$4 -> 1.447908523e-19
A141: 4463.897 | B141: 9.592466737e-06 | C141: =+IF(AND(A141>Analyse1!$E$3,Data!A141<Analyse1!$E$4),B141,"") ->  | D141: =+B141/Analyse1!$H$3*Analyse1!$H$4 -> 1.467868906e-19
A142: 4464.897 | B142: 2.282575391e-06 | C142: =+IF(AND(A142>Analyse1!$E$3,Data!A142<Analyse1!$E$4),B142,"") ->  | D142: =+B142/Analyse1!$H$3*Analyse1!$H$4 -> 3.492867408e-20
A143: 4465.897 | B143: -1.434666069e-05 | C143: =+IF(AND(A143>Analyse1!$E$3,Data!A143<Analyse1!$E$4),B143,"") ->  | D143: =+B143/Analyse1!$H$3*Analyse1!$H$4 -> -2.195370358e-19
A144: 4466.897 | B144: -3.19473112e-05 | C144: =+IF(AND(A144>Analyse1!$E$3,Data!A144<Analyse1!$E$4),B144,"") ->  | D144: =+B144/Analyse1!$H$3*Analyse1!$H$4 -> -4.888676295e-19
A145: 4467.897 | B145: -3.791132359e-05 | C145: =+IF(AND(A145>Analyse1!$E$3,Data!A145<Analyse1!$E$4),B145,"") ->  | D145: =+B145/Analyse1!$H$3*Analyse1!$H$4 -> -5.801307903e-19
A146: 4468.897 | B146: -1.961658694e-05 | C146: =+IF(AND(A146>Analyse1!$E$3,Data!A146<Analyse1!$E$4),B146,"") ->  | D146: =+B146/Analyse1!$H$3*Analyse1!$H$4 -> -3.001790761e-19
A147: 4469.897 | B147: 3.39210364e-05 | C147: =+IF(AND(A147>Analyse1!$E$3,Data!A147<Analyse1!$E$4),B147,"") ->  | D147: =+B147/Analyse1!$H$3*Analyse1!$H$4 -> 5.190701826e-19
A148: 4470.897 | B148: 0.0001033126203 | C148: =+IF(AND(A148>Analyse1!$E$3,Data!A148<Analyse1!$E$4),B148,"") ->  | D148: =+B148/Analyse1!$H$3*Analyse1!$H$4 -> 1.580921646e-18
A149: 4471.897 | B149: 0.0001423712475 | C149: =+IF(AND(A149>Analyse1!$E$3,Data!A149<Analyse1!$E$4),B149,"") ->  | D149: =+B149/Analyse1!$H$3*Analyse1!$H$4 -> 2.178608829e-18
A150: 4472.897 | B150: 0.0001039905585 | C150: =+IF(AND(A150>Analyse1!$E$3,Data!A150<Analyse1!$E$4),B150,"") ->  | D150: =+B150/Analyse1!$H$3*Analyse1!$H$4 -> 1.591295665e-18
A151: 4473.897 | B151: -5.820477263e-05 | C151: =+IF(AND(A151>Analyse1!$E$3,Data!A151<Analyse1!$E$4),B151,"") ->  | D151: =+B151/Analyse1!$H$3*Analyse1!$H$4 -> -8.906674195e-19
A152: 4474.897 | B152: -0.0003174183848 | C152: =+IF(AND(A152>Analyse1!$E$3,Data!A152<Analyse1!$E$4),B152,"") ->  | D152: =+B152/Analyse1!$H$3*Analyse1!$H$4 -> -4.857234225e-18
A153: 4475.897 | B153: -0.0005123011857 | C153: =+IF(AND(A153>Analyse1!$E$3,Data!A153<Analyse1!$E$4),B153,"") ->  | D153: =+B153/Analyse1!$H$3*Analyse1!$H$4 -> -7.839391074e-18
A154: 4476.897 | B154: -0.0004670498492 | C154: =+IF(AND(A154>Analyse1!$E$3,Data!A154<Analyse1!$E$4),B154,"") ->  | D154: =+B154/Analyse1!$H$3*Analyse1!$H$4 -> -7.146941138e-18
A155: 4477.897 | B155: -5.861049299e-06 | C155: =+IF(AND(A155>Analyse1!$E$3,Data!A155<Analyse1!$E$4),B155,"") ->  | D155: =+B155/Analyse1!$H$3*Analyse1!$H$4 -> -8.968758777e-20
A156: 4478.897 | B156: 0.0009117291114 | C156: =+IF(AND(A156>Analyse1!$E$3,Data!A156<Analyse1!$E$4),B156,"") ->  | D156: =+B156/Analyse1!$H$3*Analyse1!$H$4 -> 1.395156064e-17
A157: 4479.897 | B157: 0.001771631075 | C157: =+IF(AND(A157>Analyse1!$E$3,Data!A157<Analyse1!$E$4),B157,"") ->  | D157: =+B157/Analyse1!$H$3*Analyse1!$H$4 -> 2.711004624e-17
A158: 4480.897 | B158: 0.001917737967 | C158: =+IF(AND(A158>Analyse1!$E$3,Data!A158<Analyse1!$E$4),B158,"") ->  | D158: =+B158/Analyse1!$H$3*Analyse1!$H$4 -> 2.934581907e-17
A159: 4481.897 | B159: 0.0006939428443 | C159: =+IF(AND(A159>Analyse1!$E$3,Data!A159<Analyse1!$E$4),B159,"") ->  | D159: =+B159/Analyse1!$H$3*Analyse1!$H$4 -> 1.061892787e-17
A160: 4482.897 | B160: -0.0023675321 | C160: =+IF(AND(A160>Analyse1!$E$3,Data!A160<Analyse1!$E$4),B160,"") ->  | D160: =+B160/Analyse1!$H$3*Analyse1!$H$4 -> -3.622870789e-17
A161: 4483.897 | B161: -0.005882320983 | C161: =+IF(AND(A161>Analyse1!$E$3,Data!A161<Analyse1!$E$4),B161,"") ->  | D161: =+B161/Analyse1!$H$3*Analyse1!$H$4 -> -9.001309366e-17
A162: 4484.897 | B162: -0.007413907995 | C162: =+IF(AND(A162>Analyse1!$E$3,Data!A162<Analyse1!$E$4),B162,"") ->  | D162: =+B162/Analyse1!$H$3*Analyse1!$H$4 -> -1.134499115e-16
A163: 4485.897 | B163: -0.004513668682 | C163: =+IF(AND(A163>Analyse1!$E$3,Data!A163<Analyse1!$E$4),B163,"") ->  | D163: =+B163/Analyse1!$H$3*Analyse1!$H$4 -> -6.906955316e-17
A164: 4486.897 | B164: 0.005106992633 | C164: =+IF(AND(A164>Analyse1!$E$3,Data!A164<Analyse1!$E$4),B164,"") ->  | D164: =+B164/Analyse1!$H$3*Analyse1!$H$4 -> 7.814877963e-17
A165: 4487.897 | B165: 0.01865859332 | C165: =+IF(AND(A165>Analyse1!$E$3,Data!A165<Analyse1!$E$4),B165,"") ->  | D165: =+B165/Analyse1!$H$3*Analyse1!$H$4 -> 2.855195615e-16
A166: 4488.897 | B166: 0.02734925651 | C166: =+IF(AND(A166>Analyse1!$E$3,Data!A166<Analyse1!$E$4),B166,"") ->  | D166: =+B166/Analyse1!$H$3*Analyse1!$H$4 -> 4.185067756e-16
A167: 4489.897 | B167: 0.02204059135 | C167: =+IF(AND(A167>Analyse1!$E$3,Data!A167<Analyse1!$E$4),B167,"") ->  | D167: =+B167/Analyse1!$H$3*Analyse1!$H$4 -> 3.372719407e-16
A168: 4490.897 | B168: -0.006377380253 | C168: =+IF(AND(A168>Analyse1!$E$3,Data!A168<Analyse1!$E$4),B168,"") ->  | D168: =+B168/Analyse1!$H$3*Analyse1!$H$4 -> -9.758864362e-17
A169: 4491.897 | B169: -0.0559374448 | C169: =+IF(AND(A169>Analyse1!$E$3,Data!A169<Analyse1!$E$4),B169,"") ->  | D169: =+B169/Analyse1!$H$3*Analyse1!$H$4 -> -8.559720682e-16
A170: 4492.897 | B170: -0.09683741673 | C170: =+IF(AND(A170>Analyse1!$E$3,Data!A170<Analyse1!$E$4),B170,"") ->  | D170: =+B170/Analyse1!$H$3*Analyse1!$H$4 -> -1.481836079e-15
A171: 4493.897 | B171: -0.09497235701 | C171: =+IF(AND(A171>Analyse1!$E$3,Data!A171<Analyse1!$E$4),B171,"") ->  | D171: =+B171/Analyse1!$H$3*Analyse1!$H$4 -> -1.453296359e-15
A172: 4494.897 | B172: -0.01623732663 | C172: =+IF(AND(A172>Analyse1!$E$3,Data!A172<Analyse1!$E$4),B172,"") ->  | D172: =+B172/Analyse1!$H$3*Analyse1!$H$4 -> -2.484685904e-16
A173: 4495.897 | B173: 0.1637105473 | C173: =+IF(AND(A173>Analyse1!$E$3,Data!A173<Analyse1!$E$4),B173,"") ->  | D173: =+B173/Analyse1!$H$3*Analyse1!$H$4 -> 2.505149391e-15
A174: 4496.897 | B174: 0.4130729537 | C174: =+IF(AND(A174>Analyse1!$E$3,Data!A174<Analyse1!$E$4),B174,"") ->  | D174: =+B174/Analyse1!$H$3*Analyse1!$H$4 -> 6.32097e-15
A175: 4497.897 | B175: 0.6800217702 | C175: =+IF(AND(A175>Analyse1!$E$3,Data!A175<Analyse1!$E$4),B175,"") ->  | D175: =+B175/Analyse1!$H$3*Analyse1!$H$4 -> 1.040590329e-14
A176: 4498.897 | B176: 0.9127041019 | C176: =+IF(AND(A176>Analyse1!$E$3,Data!A176<Analyse1!$E$4),B176,"") ->  | D176: =+B176/Analyse1!$H$3*Analyse1!$H$4 -> 1.396648025e-14
A177: 4499.897 | B177: 1.062185116 | C177: =+IF(AND(A177>Analyse1!$E$3,Data!A177<Analyse1!$E$4),B177,"") ->  | D177: =+B177/Analyse1!$H$3*Analyse1!$H$4 -> 1.625388492e-14
A178: 4500.897 | B178: 1.122853536 | C178: =+IF(AND(A178>Analyse1!$E$3,Data!A178<Analyse1!$E$4),B178,"") ->  | D178: =+B178/Analyse1!$H$3*Analyse1!$H$4 -> 1.718225183e-14
A179: 4501.897 | B179: 1.122275954 | C179: =+IF(AND(A179>Analyse1!$E$3,Data!A179<Analyse1!$E$4),B179,"") ->  | D179: =+B179/Analyse1!$H$3*Analyse1!$H$4 -> 1.71734135e-14
A180: 4502.897 | B180: 1.088862501 | C180: =+IF(AND(A180>Analyse1!$E$3,Data!A180<Analyse1!$E$4),B180,"") ->  | D180: =+B180/Analyse1!$H$3*Analyse1!$H$4 -> 1.666211051e-14
A181: 4503.897 | B181: 1.050852218 | C181: =+IF(AND(A181>Analyse1!$E$3,Data!A181<Analyse1!$E$4),B181,"") ->  | D181: =+B181/Analyse1!$H$3*Analyse1!$H$4 -> 1.608046541e-14
A182: 4504.897 | B182: 1.025491698 | C182: =+IF(AND(A182>Analyse1!$E$3,Data!A182<Analyse1!$E$4),B182,"") ->  | D182: =+B182/Analyse1!$H$3*Analyse1!$H$4 -> 1.569239089e-14
A183: 4505.897 | B183: 1.01255729 | C183: =+IF(AND(A183>Analyse1!$E$3,Data!A183<Analyse1!$E$4),B183,"") ->  | D183: =+B183/Analyse1!$H$3*Analyse1!$H$4 -> 1.54944646e-14
A184: 4506.897 | B184: 1.010270888 | C184: =+IF(AND(A184>Analyse1!$E$3,Data!A184<Analyse1!$E$4),B184,"") ->  | D184: =+B184/Analyse1!$H$3*Analyse1!$H$4 -> 1.545947737e-14
A185: 4507.897 | B185: 1.016854346 | C185: =+IF(AND(A185>Analyse1!$E$3,Data!A185<Analyse1!$E$4),B185,"") ->  | D185: =+B185/Analyse1!$H$3*Analyse1!$H$4 -> 1.556021946e-14
A186: 4508.897 | B186: 1.030083395 | C186: =+IF(AND(A186>Analyse1!$E$3,Data!A186<Analyse1!$E$4),B186,"") ->  | D186: =+B186/Analyse1!$H$3*Analyse1!$H$4 -> 1.576265446e-14
A187: 4509.897 | B187: 1.046178689 | C187: =+IF(AND(A187>Analyse1!$E$3,Data!A187<Analyse1!$E$4),B187,"") ->  | D187: =+B187/Analyse1!$H$3*Analyse1!$H$4 -> 1.600894963e-14
A188: 4510.897 | B188: 1.061022254 | C188: =+IF(AND(A188>Analyse1!$E$3,Data!A188<Analyse1!$E$4),B188,"") ->  | D188: =+B188/Analyse1!$H$3*Analyse1!$H$4 -> 1.623609045e-14
A189: 4511.897 | B189: 1.070496117 | C189: =+IF(AND(A189>Analyse1!$E$3,Data!A189<Analyse1!$E$4),B189,"") ->  | D189: =+B189/Analyse1!$H$3*Analyse1!$H$4 -> 1.638106243e-14
A190: 4512.897 | B190: 1.070950125 | C190: =+IF(AND(A190>Analyse1!$E$3,Data!A190<Analyse1!$E$4),B190,"") ->  | D190: =+B190/Analyse1!$H$3*Analyse1!$H$4 -> 1.63880098e-14
A191: 4513.897 | B191: 1.062570656 | C191: =+IF(AND(A191>Analyse1!$E$3,Data!A191<Analyse1!$E$4),B191,"") ->  | D191: =+B191/Analyse1!$H$3*Analyse1!$H$4 -> 1.625978458e-14
A192: 4514.897 | B192: 1.047424024 | C192: =+IF(AND(A192>Analyse1!$E$3,Data!A192<Analyse1!$E$4),B192,"") ->  | D192: =+B192/Analyse1!$H$3*Analyse1!$H$4 -> 1.602800612e-14
A193: 4515.897 | B193: 1.027589442 | C193: =+IF(AND(A193>Analyse1!$E$3,Data!A193<Analyse1!$E$4),B193,"") ->  | D193: =+B193/Analyse1!$H$3*Analyse1!$H$4 -> 1.572449123e-14
A194: 4516.897 | B194: 1.005168594 | C194: =+IF(AND(A194>Analyse1!$E$3,Data!A194<Analyse1!$E$4),B194,"") ->  | D194: =+B194/Analyse1!$H$3*Analyse1!$H$4 -> 1.538140048e-14
A195: 4517.897 | B195: 0.9828050746 | C195: =+IF(AND(A195>Analyse1!$E$3,Data!A195<Analyse1!$E$4),B195,"") ->  | D195: =+B195/Analyse1!$H$3*Analyse1!$H$4 -> 1.5039187e-14
A196: 4518.897 | B196: 0.9636987562 | C196: =+IF(AND(A196>Analyse1!$E$3,Data!A196<Analyse1!$E$4),B196,"") ->  | D196: =+B196/Analyse1!$H$3*Analyse1!$H$4 -> 1.474681621e-14
A197: 4519.897 | B197: 0.9510748512 | C197: =+IF(AND(A197>Analyse1!$E$3,Data!A197<Analyse1!$E$4),B197,"") ->  | D197: =+B197/Analyse1!$H$3*Analyse1!$H$4 -> 1.455364131e-14
A198: 4520.897 | B198: 0.9481462186 | C198: =+IF(AND(A198>Analyse1!$E$3,Data!A198<Analyse1!$E$4),B198,"") ->  | D198: =+B198/Analyse1!$H$3*Analyse1!$H$4 -> 1.450882647e-14
A199: 4521.897 | B199: 0.9558661787 | C199: =+IF(AND(A199>Analyse1!$E$3,Data!A199<Analyse1!$E$4),B199,"") ->  | D199: =+B199/Analyse1!$H$3*Analyse1!$H$4 -> 1.462695968e-14
A200: 4522.897 | B200: 0.970312697 | C200: =+IF(AND(A200>Analyse1!$E$3,Data!A200<Analyse1!$E$4),B200,"") ->  | D200: =+B200/Analyse1!$H$3*Analyse1!$H$4 -> 1.484802477e-14
... 3366 more rows

Sheet Donnees
K2: Source :
I3: Type Géante | K3: HD | L3: 203525 | M3: 102212 | N3: 217906 | O3: 112142 | P3: 172816 | Q3: 221615 | R3: 196610 | S3: 114961
C4: Continuum HI | K4: l | L4: 0 | M4: 1 | N4: 2 | O4: 3 | P4: 4 | Q4: 5 | R4: 6 | S4: 7
K5: 3500 | L5: 0.03564078474 | M5: 0.03667412142 | N5: 0.03034318316 | O5: 0.1320599259 | P5: 0.0292539753 | Q5: 0.04957816042 | R5: 0.0401462903 | S5: 0.05037077739
D6: T (K) | E6: a1 | F6: a2 | G6: a3 | I6: M0III | K6: 3501 | L6: 0.03809700251 | M6: 0.03941120427 | N6: 0.03180969959 | O6: 0.1463611636 | P6: 0.02995070728 | Q6: 0.05314694803 | R6: 0.04222331206 | S6: 0.05263728478
C7: 1 | D7: 5000 | E7: 3e-07 | F7: -0.0014 | G7: 1.5829 | I7: M1III | K7: 3502 | L7: 0.04017075462 | M7: 0.04184420834 | N7: 0.03308261834 | O7: 0.1593604287 | P7: 0.03059654168 | Q7: 0.05669334376 | R7: 0.04466306535 | S7: 0.05472782425
C8: 2 | D8: 10000 | E8: -8e-08 | F8: 0.0016 | G8: -3.6914 | I8: M2III | K8: 3503 | L8: 0.04176501533 | M8: 0.04376061337 | N8: 0.03417313102 | O8: 0.1675343584 | P8: 0.03106354678 | Q8: 0.05961627597 | R8: 0.04690319965 | S8: 0.05647238751
C9: 3 | D9: 15000 | E9: -9e-08 | F9: 0.0013 | G9: -1.9499 | I9: M3III | K9: 3504 | L9: 0.04238292615 | M9: 0.04456884751 | N9: 0.03466386763 | O9: 0.1699197118 | P9: 0.03123914388 | Q9: 0.06103421392 | R9: 0.04825099392 | S9: 0.05736913942
C10: 4 | D10: 20000 | E10: -6e-08 | F10: 0.0008 | G10: -0.199 | I10: M4III | K10: 3505 | L10: 0.04155921941 | M10: 0.04395171311 | N10: 0.03422216947 | O10: 0.1675152903 | P10: 0.03088701837 | Q10: 0.06031674058 | R10: 0.04823387227 | S10: 0.05687281588
I11: M5III | K11: 3506 | L11: 0.03973707252 | M11: 0.04247293087 | N11: 0.03318807411 | O11: 0.1620269552 | P11: 0.03013964159 | Q11: 0.05820334691 | R11: 0.0470409509 | S11: 0.05544129832
C12: 1 | E12: =+VLOOKUP($C$12,$C$7:$G$10,3,1) -> 3e-07 | F12: =+VLOOKUP($C$12,$C$7:$G$10,4,1) -> -0.0014 | G12: =+VLOOKUP($C$12,$C$7:$G$10,5,1) -> 1.5829 | I12: M6III | K12: 3507 | L12: 0.03767797994 | M12: 0.0409077469 | N12: 0.03206586309 | O12: 0.1544698864 | P12: 0.02922071128 | Q12: 0.05558732969 | R12: 0.04522295148 | S12: 0.0538482524
I13: M7III | K13: 3508 | L13: 0.03577649076 | M13: 0.03941886568 | N13: 0.03099159357 | O13: 0.1450114301 | P13: 0.02857508632 | Q13: 0.05299990405 | R13: 0.04305455008 | S13: 0.05220507304
K14: 3509 | L14: 0.03397971634 | M14: 0.03774806944 | N14: 0.02987250393 | O14: 0.1347760048 | P14: 0.0283275009 | Q14: 0.05068836909 | R14: 0.04085777039 | S14: 0.05015619818
I15: 8 | K15: 3510 | L15: 0.03216984156 | M15: 0.03567797122 | N15: 0.02865616464 | O15: 0.1269910668 | P15: 0.02835988671 | Q15: 0.04878633288 | R15: 0.03880710105 | S15: 0.04742907565
C16: 1 | D16: Hd | E16: 4101.7 | K16: 3511 | L16: 0.03022571285 | M16: 0.03336688824 | N16: 0.02749335448 | O16: 0.1254855045 | P16: 0.02850404085 | Q16: 0.04733376183 | R16: 0.03678852652 | S16: 0.04447637927
C17: 2 | D17: Hg | E17: 4340.5 | K17: 3512 | L17: 0.02814953251 | M17: 0.03095975884 | N17: 0.02638476205 | O17: 0.1318509385 | P17: 0.02837068782 | Q17: 0.04615055812 | R17: 0.03461574553 | S17: 0.0418572974
C18: 3 | D18: He II 4686 | E18: 4685.7 | K18: 3513 | L18: 0.02635400424 | M18: 0.02907222795 | N18: 0.02559669673 | O18: 0.1439188169 | P18: 0.02787481615 | Q18: 0.04549043021 | R18: 0.03252007638 | S18: 0.04024949849
C19: 4 | D19: Hb | E19: 4861.34 | K19: 3514 | L19: 0.02563382736 | M19: 0.02867263789 | N19: 0.02560772206 | O19: 0.1572983988 | P19: 0.02745673621 | Q19: 0.04636509046 | R19: 0.03137481466 | S19: 0.04024509499
C20: 5 | D20: He I 4922 | E20: 4922 | K20: 3515 | L20: 0.026908592 | M20: 0.03055044406 | N20: 0.02695426966 | O20: 0.1680166517 | P20: 0.02784013287 | Q20: 0.04951865649 | R20: 0.03172134376 | S20: 0.0420806739
C21: 6 | D21: [OIII] 4959 | E21: 4958.9 | K21: 3516 | L21: 0.03010364345 | M21: 0.03428896878 | N21: 0.02944845109 | O21: 0.1742101494 | P21: 0.0291357913 | Q21: 0.05436100441 | R21: 0.03340947238 | S21: 0.04506370003
C22: 7 | D22: [OIII] 5007 | E22: 5006.8 | K22: 3517 | L22: 0.03373657222 | M22: 0.03807715182 | N22: 0.03185650536 | O22: 0.1756433583 | P22: 0.03058341322 | Q22: 0.05866247811 | R22: 0.03555563408 | S22: 0.04754432356
C23: 8 | D23: He II 5411 | E23: 5411.5 | K23: 3518 | L23: 0.0359477132 | M23: 0.04001396659 | N23: 0.03293646904 | O23: 0.1730841211 | P23: 0.0313897707 | Q23: 0.06048201925 | R23: 0.03706469496 | S23: 0.0482306086
C24: 9 | D24: [Fe VII] 5721 | E24: 5721 | K24: 3519 | L24: 0.03565742624 | M24: 0.03916268003 | N24: 0.03210707548 | O24: 0.1683852042 | P24: 0.03116628014 | Q24: 0.05915501676 | R24: 0.03734034629 | S24: 0.04704363336
C25: 10 | D25: He I 5876 | E25: 5876 | K25: 3520 | L25: 0.03313300693 | M25: 0.03605676857 | N25: 0.02986041394 | O25: 0.1634123659 | P25: 0.03014051154 | Q25: 0.05562026802 | R25: 0.03635497732 | S25: 0.04494890193
C26: 11 | D26: [Fe VII] 6087 | E26: 6087 | K26: 3521 | L26: 0.02953932853 | M26: 0.03198352088 | N26: 0.02704842542 | O26: 0.1594098644 | P26: 0.0287214477 | Q26: 0.05125065892 | R26: 0.03442760781 | S26: 0.04294301814
C27: 12 | D27: Ha | E27: 6562.81 | K27: 3522 | L27: 0.02590018824 | M27: 0.0280848336 | N27: 0.0242951695 | O27: 0.1570577133 | P27: 0.02710263784 | Q27: 0.046944327 | R27: 0.03187918685 | S27: 0.04128714627
C28: 13 | D28: He I 6678 | E28: 6678 | K28: 3523 | L28: 0.0227561237 | M28: 0.02503914863 | N28: 0.02197412821 | O28: 0.1565856498 | P28: 0.02569798051 | Q28: 0.04322311296 | R28: 0.0290036753 | S28: 0.039830776
C29: 14 | D29: He I 7065 | E29: 7065 | K29: 3524 | L29: 0.02058899187 | M29: 0.02327083505 | N29: 0.02034052917 | O29: 0.1574776588 | P29: 0.0248322744 | Q29: 0.04088591675 | R29: 0.02656541608 | S29: 0.03849814348
K30: 3525 | L30: 0.02005979661 | M30: 0.02321467867 | N30: 0.019810724 | O30: 0.1581678006 | P30: 0.02483278702 | Q30: 0.0409607622 | R30: 0.02543457486 | S30: 0.03797932826
C31: 12 | K31: 3526 | L31: 0.0215626088 | M31: 0.02514907163 | N31: 0.02070349881 | O31: 0.1562951331 | P31: 0.02578355044 | Q31: 0.04403208435 | R31: 0.02604947995 | S31: 0.03906847138
K32: 3527 | L32: 0.02487245439 | M32: 0.02872309539 | N32: 0.02300277282 | O32: 0.1509169249 | P32: 0.02770146656 | Q32: 0.04952076259 | R32: 0.02802631121 | S32: 0.04195373249
K33: 3528 | L33: 0.02903159967 | M33: 0.03294616227 | N33: 0.02625845268 | O33: 0.1449954503 | P33: 0.03026894339 | Q33: 0.05607713248 | R33: 0.03087242724 | S33: 0.04620122564
K34: 3529 | L34: 0.03301062919 | M34: 0.03675999344 | N34: 0.02965504006 | O34: 0.1429152099 | P34: 0.03277026293 | Q34: 0.06242632825 | R34: 0.03425492372 | S34: 0.05124642291
K35: 3530 | L35: 0.0359433701 | M35: 0.03942614813 | N35: 0.03255119477 | O35: 0.1466572737 | P35: 0.03488471463 | Q35: 0.06773639326 | R35: 0.03802550511 | S35: 0.05658861396
K36: 3531 | L36: 0.03762325237 | M36: 0.04096503903 | N36: 0.03463896136 | O36: 0.1542384165 | P36: 0.03654139611 | Q36: 0.0720000209 | R36: 0.04174914968 | S36: 0.06176692196
K37: 3532 | L37: 0.03857526471 | M37: 0.0419951134 | N37: 0.03625015532 | O37: 0.1620562604 | P37: 0.03803723954 | Q37: 0.07592504759 | R37: 0.04485783025 | S37: 0.06664501879
K38: 3533 | L38: 0.0395610684 | M38: 0.04313960872 | N38: 0.03775367713 | O38: 0.1676431371 | P38: 0.03971536586 | Q38: 0.0800935515 | R38: 0.04692260174 | S38: 0.07139740566
K39: 3534 | L39: 0.04110380762 | M39: 0.04483583551 | N39: 0.03927521608 | O39: 0.1696603803 | P39: 0.04164779664 | Q39: 0.08485426506 | R39: 0.0481833354 | S39: 0.07626212276
K40: 3535 | L40: 0.04300314967 | M40: 0.04703428183 | N40: 0.04074726031 | O40: 0.1678458678 | P40: 0.04370559046 | Q40: 0.08978390717 | R40: 0.04922228678 | S40: 0.08102386134
K41: 3536 | L41: 0.0448417862 | M41: 0.04945004458 | N41: 0.04204071588 | O41: 0.1639998709 | P41: 0.04562685045 | Q41: 0.09424864081 | R41: 0.05064599521 | S41: 0.0848267324
K42: 3537 | L42: 0.04642757924 | M42: 0.05175457346 | N42: 0.04312993126 | O42: 0.1612757265 | P42: 0.04709714502 | Q42: 0.09793526945 | R42: 0.05257199263 | S42: 0.08722171634
K43: 3538 | L43: 0.04763367162 | M43: 0.0535148281 | N43: 0.04402684969 | O43: 0.1608705164 | P43: 0.04793455823 | Q43: 0.1006197372 | R43: 0.05437570589 | S43: 0.0884611975
K44: 3539 | L44: 0.04826167299 | M44: 0.05419597972 | N44: 0.04470058436 | O44: 0.1602377551 | P44: 0.04794477011 | Q44: 0.1021138334 | R44: 0.05555949678 | S44: 0.08921393659
K45: 3540 | L45: 0.048017342 | M45: 0.05348247778 | N45: 0.04506448585 | O45: 0.1560799729 | P45: 0.04750981246 | Q45: 0.1024216774 | R45: 0.05607115409 | S45: 0.09010288408
K46: 3541 | L46: 0.04703516115 | M46: 0.05190996661 | N46: 0.0451063588 | O46: 0.1487613388 | P46: 0.04706655781 | Q46: 0.1022856077 | R46: 0.05646244502 | S46: 0.09134335108
K47: 3542 | L47: 0.04595845013 | M47: 0.05042572668 | N47: 0.04493696617 | O47: 0.1428653546 | P47: 0.04719286604 | Q47: 0.1025468078 | R47: 0.05737059984 | S47: 0.09299414265
K48: 3543 | L48: 0.04522348254 | M48: 0.04960179516 | N48: 0.0445505623 | O48: 0.1431155173 | P48: 0.04781838898 | Q48: 0.1032601102 | R48: 0.0586619769 | S48: 0.0945914112
K49: 3544 | L49: 0.04484025983 | M49: 0.04923954542 | N49: 0.04399816812 | O49: 0.1509974277 | P49: 0.04843847456 | Q49: 0.1036914277 | R49: 0.05980824002 | S49: 0.0955676872
K50: 3545 | L50: 0.04415711766 | M50: 0.04849198149 | N50: 0.04309229701 | O50: 0.1633852944 | P50: 0.04839026535 | Q50: 0.1025474168 | R50: 0.06000369326 | S50: 0.09510270833
K51: 3546 | L51: 0.04279847381 | M51: 0.04703613269 | N51: 0.04165164977 | O51: 0.1750147053 | P51: 0.04753663119 | Q51: 0.09962832684 | R51: 0.05878710277 | S51: 0.0929869737
K52: 3547 | L52: 0.04101686288 | M52: 0.04530082193 | N52: 0.03978420361 | O52: 0.1823160573 | P52: 0.04614916543 | Q52: 0.09580663016 | R52: 0.05622892269 | S52: 0.08991084686
K53: 3548 | L53: 0.03945499086 | M53: 0.04389474947 | N53: 0.03787816748 | O53: 0.185772342 | P53: 0.04468071852 | Q53: 0.09222118709 | R53: 0.05303921295 | S53: 0.08693873298
K54: 3549 | L54: 0.03861358666 | M54: 0.04318756817 | N54: 0.03639293055 | O54: 0.1880385094 | P54: 0.04350392307 | Q54: 0.08969942583 | R54: 0.050593259 | S54: 0.08481138011
K55: 3550 | L55: 0.03842902043 | M55: 0.04289226856 | N55: 0.03552069459 | O55: 0.1916617039 | P55: 0.04294399931 | Q55: 0.08808720577 | R55: 0.04972757883 | S55: 0.08361936548
K56: 3551 | L56: 0.03850247471 | M56: 0.04258519855 | N56: 0.03514896985 | O56: 0.1980253227 | P56: 0.04273417407 | Q56: 0.08705185769 | R56: 0.05057043127 | S56: 0.08316671172
K57: 3552 | L57: 0.03850522362 | M57: 0.04220466568 | N57: 0.03509923929 | O57: 0.2065557302 | P57: 0.04276103593 | Q57: 0.08668232599 | R57: 0.05253797669 | S57: 0.08380389802
K58: 3553 | L58: 0.03845421291 | M58: 0.04215788277 | N58: 0.03541691008 | O58: 0.2148037979 | P58: 0.04314319027 | Q58: 0.08777735432 | R58: 0.05493161046 | S58: 0.0863959133
K59: 3554 | L59: 0.03866334266 | M59: 0.04292885132 | N59: 0.036283014 | O59: 0.2199272659 | P59: 0.044119962 | Q59: 0.09084003211 | R59: 0.05749018056 | S59: 0.09144317463
K60: 3555 | L60: 0.03919961723 | M60: 0.04426910803 | N60: 0.03756745509 | O60: 0.2198537279 | P60: 0.04548044817 | Q60: 0.09503425289 | R60: 0.05968984975 | S60: 0.09792722399
K61: 3556 | L61: 0.03953802571 | M61: 0.04532719462 | N61: 0.0388072828 | O61: 0.2155917304 | P61: 0.04661863544 | Q61: 0.09850673387 | R61: 0.06090449151 | S61: 0.103437168
K62: 3557 | L62: 0.0391400216 | M62: 0.04535136028 | N62: 0.03940027772 | O62: 0.2097711137 | P62: 0.0471017074 | Q62: 0.09994044821 | R62: 0.06078722587 | S62: 0.1060474716
K63: 3558 | L63: 0.03807906176 | M63: 0.04457955814 | N63: 0.0391699073 | O63: 0.2039253989 | P63: 0.04711843071 | Q63: 0.09990077713 | R63: 0.05972394933 | S63: 0.1060055382
K64: 3559 | L64: 0.03709753313 | M64: 0.04382141121 | N64: 0.03852246473 | O64: 0.1974097367 | P64: 0.04709597721 | Q64: 0.09990417784 | R64: 0.05844904058 | S64: 0.1050648528
K65: 3560 | L65: 0.03679660458 | M65: 0.04361551629 | N65: 0.03803438133 | O65: 0.1892944494 | P65: 0.04708793553 | Q65: 0.1007092012 | R65: 0.05728390234 | S65: 0.1047464402
K66: 3561 | L66: 0.03685356129 | M66: 0.0436401368 | N66: 0.03785098149 | O66: 0.1798653755 | P66: 0.04669758406 | Q66: 0.1016081939 | R66: 0.05625584482 | S66: 0.1049918674
K67: 3562 | L67: 0.0364228546 | M67: 0.04300370705 | N67: 0.03754675131 | O67: 0.1705356561 | P67: 0.04542988144 | Q67: 0.1007569829 | R67: 0.05484434487 | S67: 0.1044187491
K68: 3563 | L68: 0.03470351007 | M68: 0.04088926619 | N68: 0.03633020758 | O68: 0.1620277112 | P68: 0.04303625544 | Q68: 0.09662777954 | R68: 0.05242845583 | S68: 0.1013599256
K69: 3564 | L69: 0.03165885605 | M69: 0.03727547145 | N69: 0.0338529217 | O69: 0.154006891 | P69: 0.03992978944 | Q69: 0.08930499697 | R69: 0.04901387446 | S69: 0.09537547666
K70: 3565 | L70: 0.02817335262 | M70: 0.03312891255 | N70: 0.03061627283 | O70: 0.1467037827 | P70: 0.03722730998 | Q70: 0.08096365865 | R70: 0.04539075741 | S70: 0.0881751802
K71: 3566 | L71: 0.02529947536 | M71: 0.02982278452 | N71: 0.02771155982 | O71: 0.1428370664 | P71: 0.03565215442 | Q71: 0.07415822764 | R71: 0.04277812265 | S71: 0.08241295314
K72: 3567 | L72: 0.02346773714 | M72: 0.02793373108 | N72: 0.02577627887 | O72: 0.1447114147 | P72: 0.03493088842 | Q72: 0.0696843689 | R72: 0.04146601778 | S72: 0.07909436574
K73: 3568 | L73: 0.02231727445 | M73: 0.02709397432 | N73: 0.02474957501 | O73: 0.1525307758 | P73: 0.034277616 | Q73: 0.06666800458 | R73: 0.04066961595 | S73: 0.07692357177
K74: 3569 | L74: 0.02145122862 | M74: 0.02669116527 | N74: 0.02419174604 | O74: 0.164604086 | P74: 0.033337201 | Q74: 0.06424119875 | R74: 0.03959085271 | S74: 0.07433139337
K75: 3570 | L75: 0.02116126133 | M75: 0.02671884079 | N75: 0.02390457703 | O75: 0.1777380294 | P75: 0.03243206015 | Q75: 0.06291453282 | R75: 0.0383001379 | S75: 0.07129986755
K76: 3571 | L76: 0.02192789518 | M76: 0.0274444336 | N76: 0.0239365756 | O76: 0.1885875694 | P76: 0.03217027076 | Q76: 0.06347791018 | R76: 0.03769826014 | S76: 0.06900901238
K77: 3572 | L77: 0.02379314534 | M77: 0.02872607063 | N77: 0.02429473777 | O77: 0.1943794445 | P77: 0.03270840823 | Q77: 0.06549681443 | R77: 0.03795738925 | S77: 0.06794521355
K78: 3573 | L78: 0.02589092811 | M78: 0.02988612774 | N78: 0.02476528452 | O78: 0.1941106382 | P78: 0.033611086 | Q78: 0.06731022074 | R78: 0.03857865638 | S78: 0.06732524442
K79: 3574 | L79: 0.02714233876 | M79: 0.0302502349 | N79: 0.02505686016 | O79: 0.1891040409 | P79: 0.03412878203 | Q79: 0.06730208979 | R79: 0.03842174985 | S79: 0.06577782128
K80: 3575 | L80: 0.02682046924 | M80: 0.02956533112 | N80: 0.02484047215 | O80: 0.1823155103 | P80: 0.033913218 | Q80: 0.0648527199 | R80: 0.03672893667 | S80: 0.06251318546
K81: 3576 | L81: 0.02491690236 | M81: 0.02785587955 | N81: 0.02374335691 | O81: 0.1770436126 | P81: 0.0326250935 | Q81: 0.06028307447 | R81: 0.03360320251 | S81: 0.05747501752
K82: 3577 | L82: 0.02202397038 | M82: 0.02542013267 | N82: 0.02171765646 | O82: 0.175300625 | P82: 0.03080913257 | Q82: 0.05478651855 | R82: 0.02994336425 | S82: 0.05161345568
K83: 3578 | L83: 0.01902269506 | M83: 0.02272635372 | N83: 0.01928179174 | O83: 0.1771131724 | P83: 0.02916049229 | Q83: 0.05011230947 | R83: 0.02709930741 | S83: 0.04706832268
K84: 3579 | L84: 0.01667124939 | M84: 0.02035798437 | N84: 0.01724669833 | O84: 0.1801930377 | P84: 0.0282471456 | Q84: 0.04751080157 | R84: 0.02593711728 | S84: 0.04565078228
K85: 3580 | L85: 0.01547660154 | M85: 0.01895229749 | N85: 0.01639147585 | O85: 0.1822796013 | P85: 0.02837856198 | Q85: 0.04771269397 | R85: 0.0266993072 | S85: 0.04811242137
K86: 3581 | L86: 0.01554958651 | M86: 0.0190306952 | N86: 0.01702312588 | O86: 0.1823718563 | P86: 0.02959416538 | Q86: 0.05067000112 | R86: 0.02897697053 | S86: 0.05378820286
K87: 3582 | L87: 0.0166307452 | M87: 0.02033596305 | N87: 0.01868169021 | O87: 0.1806048935 | P87: 0.03132160335 | Q87: 0.05515965409 | R87: 0.03166879175 | S87: 0.06040642925
K88: 3583 | L88: 0.01804117287 | M88: 0.02198918529 | N88: 0.02043550783 | O88: 0.1784488653 | P88: 0.03266905714 | Q88: 0.05927655209 | R88: 0.03380430559 | S88: 0.06544849138
K89: 3584 | L89: 0.01915951155 | M89: 0.02292769252 | N89: 0.02145721213 | O89: 0.1771304714 | P89: 0.03284805182 | Q89: 0.06142995079 | R89: 0.03485004176 | S89: 0.06743583168
K90: 3585 | L90: 0.01981577196 | M90: 0.02295135872 | N90: 0.02169436686 | O90: 0.1778825548 | P90: 0.03221366127 | Q90: 0.06178099254 | R90: 0.03528530822 | S90: 0.06709600422
K91: 3586 | L91: 0.02049776606 | M91: 0.02289904259 | N91: 0.0218447335 | O91: 0.1807996202 | P91: 0.03181565648 | Q91: 0.06206310186 | R91: 0.03611396806 | S91: 0.06647335495
K92: 3587 | L92: 0.02178270597 | M92: 0.02377013193 | N92: 0.02264764654 | O92: 0.1861057894 | P92: 0.03260045722 | Q92: 0.06376484053 | R92: 0.03792214939 | S92: 0.06740443566
K93: 3588 | L93: 0.02376526077 | M93: 0.02577569291 | N93: 0.02408260828 | O93: 0.1936028031 | P93: 0.03415112796 | Q93: 0.06674262647 | R93: 0.04021414308 | S93: 0.06973729085
K94: 3589 | L94: 0.0260476748 | M94: 0.02846192715 | N94: 0.02568767977 | O94: 0.202418609 | P94: 0.03563069139 | Q94: 0.0698162017 | R94: 0.04212716302 | S94: 0.07193424242
K95: 3590 | L95: 0.02784726682 | M95: 0.03084809124 | N95: 0.02681271619 | O95: 0.2092819389 | P95: 0.03639841052 | Q95: 0.07149199424 | R95: 0.04275229112 | S95: 0.07219296358
K96: 3591 | L96: 0.02852087862 | M96: 0.03201766865 | N96: 0.02704671325 | O96: 0.2106869343 | P96: 0.03640132448 | Q96: 0.07081622091 | R96: 0.04162857444 | S96: 0.06937121586
K97: 3592 | L97: 0.02793582974 | M97: 0.03184810947 | N97: 0.02645056694 | O97: 0.2055877489 | P97: 0.03606403031 | Q97: 0.06812704796 | R97: 0.03924078053 | S97: 0.06410218272
K98: 3593 | L98: 0.02707628147 | M98: 0.03149501061 | N98: 0.02584825913 | O98: 0.1962006553 | P98: 0.03620367595 | Q98: 0.06581033753 | R98: 0.03715860992 | S98: 0.05935100102
K99: 3594 | L99: 0.02746040501 | M99: 0.03264385313 | N99: 0.02627410735 | O99: 0.1858219169 | P99: 0.03752258838 | Q99: 0.06689229884 | R99: 0.03736042338 | S99: 0.05884552541
K100: 3595 | L100: 0.02998983191 | M100: 0.03603068364 | N100: 0.02826489928 | O100: 0.1768605524 | P100: 0.04009474335 | Q100: 0.07273173028 | R100: 0.0407528048 | S100: 0.06426099609
K101: 3596 | L101: 0.03421727417 | M101: 0.0407905562 | N101: 0.03141677985 | O101: 0.1705305501 | P101: 0.04317083574 | Q101: 0.08207642964 | R101: 0.04664373061 | S101: 0.07417054566
K102: 3597 | L102: 0.03889153572 | M102: 0.04544764698 | N102: 0.0349704345 | O102: 0.1676592131 | P102: 0.04599992626 | Q102: 0.0923952809 | R102: 0.05344972478 | S102: 0.08573599078
K103: 3598 | L103: 0.04293540495 | M103: 0.04909193093 | N103: 0.03834169613 | O103: 0.1688428821 | P103: 0.04808293095 | Q103: 0.1014535683 | R103: 0.05997920928 | S103: 0.09645059601
K104: 3599 | L104: 0.04548526909 | M104: 0.05111063796 | N104: 0.0407462755 | O104: 0.1741992384 | P104: 0.04901866742 | Q104: 0.1069030327 | R104: 0.06482011529 | S104: 0.1041625722
K105: 3600 | L105: 0.04567828868 | M105: 0.05096745534 | N105: 0.04132251142 | O105: 0.1819636656 | P105: 0.04837997779 | Q105: 0.1068302933 | R105: 0.06648398842 | S105: 0.1068676431
K106: 3601 | L106: 0.04328146613 | M106: 0.04852347007 | N106: 0.03972375891 | O106: 0.1905024478 | P106: 0.0462703065 | Q106: 0.1010314706 | R106: 0.06428460107 | S106: 0.1036809511
K107: 3602 | L107: 0.03886792039 | M107: 0.0442573673 | N107: 0.03639143839 | O107: 0.197423424 | P107: 0.04318626109 | Q107: 0.09130873955 | R107: 0.05889082398 | S107: 0.09560608565
K108: 3603 | L108: 0.03374709631 | M108: 0.03912729774 | N108: 0.03238861842 | O108: 0.2013142335 | P108: 0.03990459235 | Q108: 0.08064921854 | R108: 0.05196847093 | S108: 0.08503161177
K109: 3604 | L109: 0.02909491712 | M109: 0.03436204909 | N109: 0.028715367 | O109: 0.2009848125 | P109: 0.03736175343 | Q109: 0.07185733753 | R109: 0.0455275094 | S109: 0.07493187874
K110: 3605 | L110: 0.02572160262 | M110: 0.03093595373 | N110: 0.02609097871 | O110: 0.1957276428 | P110: 0.03619069512 | Q110: 0.06667944183 | R110: 0.04115895798 | S110: 0.06817145461
K111: 3606 | L111: 0.0238102858 | M111: 0.02913704694 | N111: 0.02470392747 | O111: 0.1857877216 | P111: 0.03672759804 | Q111: 0.06533107099 | R111: 0.03947881308 | S111: 0.06636839911
K112: 3607 | L112: 0.02311274432 | M112: 0.02860889616 | N112: 0.02419781146 | O112: 0.1736680657 | P112: 0.03843201111 | Q112: 0.0664160477 | R112: 0.03966836859 | S112: 0.06868894721
K113: 3608 | L113: 0.02312069777 | M113: 0.0287851863 | N113: 0.02396819577 | O113: 0.1649194178 | P113: 0.04031399486 | Q113: 0.06815087529 | R113: 0.0405107558 | S113: 0.07249235985
K114: 3609 | L114: 0.02385603351 | M114: 0.02969624145 | N114: 0.02400297764 | O114: 0.1641736673 | P114: 0.041690004 | Q114: 0.07014881071 | R114: 0.04168777576 | S114: 0.07630380359
K115: 3610 | L115: 0.02560129385 | M115: 0.031754555 | N115: 0.02482038042 | O115: 0.1718399352 | P115: 0.04293241726 | Q115: 0.07352686641 | R115: 0.04408292917 | S115: 0.08082542572
K116: 3611 | L116: 0.02840745819 | M116: 0.03475110824 | N116: 0.02668914755 | O116: 0.1835894735 | P116: 0.04452084638 | Q116: 0.07883835445 | R116: 0.04796659368 | S116: 0.08720639728
K117: 3612 | L117: 0.03170004207 | M117: 0.03809200766 | N117: 0.02942176965 | O117: 0.1933285403 | P117: 0.04650304899 | Q117: 0.08593020149 | R117: 0.05273491769 | S117: 0.09589442247
K118: 3613 | L118: 0.03486072144 | M118: 0.04124129422 | N118: 0.03255122798 | O118: 0.1979299949 | P118: 0.04876986965 | Q118: 0.09392002972 | R118: 0.05725766621 | S118: 0.105750569
K119: 3614 | L119: 0.03726673733 | M119: 0.0438541176 | N119: 0.03545954401 | O119: 0.1977600888 | P119: 0.05084046676 | Q119: 0.1015597862 | R119: 0.06078153963 | S119: 0.1149173146
K120: 3615 | L120: 0.03829293109 | M120: 0.04536372441 | N120: 0.03748286827 | O120: 0.1952605335 | P120: 0.05219397 | Q120: 0.1070154627 | R120: 0.06263943331 | S120: 0.1215307146
K121: 3616 | L121: 0.03733549229 | M121: 0.04489147666 | N121: 0.03780112768 | O121: 0.1929725779 | P121: 0.05231469889 | Q121: 0.1081577756 | R121: 0.06217362566 | S121: 0.1236418748
K122: 3617 | L122: 0.0346567 | M122: 0.04242223325 | N122: 0.03633333524 | O122: 0.1926533004 | P122: 0.05093181792 | Q122: 0.1046668634 | R122: 0.05983634607 | S122: 0.1209438546
K123: 3618 | L123: 0.03176817791 | M123: 0.03936937391 | N123: 0.03413892509 | O123: 0.1947838823 | P123: 0.04904357268 | Q123: 0.09922799127 | R123: 0.05757773922 | S123: 0.1157911033
K124: 3619 | L124: 0.03067948572 | M124: 0.03791153082 | N124: 0.03292255056 | O124: 0.1988577855 | P124: 0.04821525669 | Q124: 0.09626689676 | R124: 0.05772035032 | S124: 0.112774335
K125: 3620 | L125: 0.03250920797 | M125: 0.03942752211 | N125: 0.03389021614 | O125: 0.2043388879 | P125: 0.04974107768 | Q125: 0.09885418779 | R125: 0.06151092034 | S125: 0.115333819
K126: 3621 | L126: 0.03688389608 | M126: 0.04342432773 | N126: 0.03696196559 | O126: 0.2111048905 | P126: 0.05313628305 | Q126: 0.1063051569 | R126: 0.06779267246 | S126: 0.1229798478
K127: 3622 | L127: 0.04222457374 | M127: 0.04818764844 | N127: 0.04089472021 | O127: 0.2184730061 | P127: 0.05691707421 | Q127: 0.1150380273 | R127: 0.07390980144 | S127: 0.1314628818
K128: 3623 | L128: 0.04705608033 | M128: 0.05224153092 | N128: 0.04445240174 | O128: 0.2256415034 | P128: 0.05974055515 | Q128: 0.1218751441 | R128: 0.07796189464 | S128: 0.1366320485
K129: 3624 | L129: 0.05101497073 | M129: 0.05550710636 | N129: 0.04740524533 | O129: 0.2312880948 | P129: 0.06168703349 | Q129: 0.1270378173 | R129: 0.08051791074 | S129: 0.1391249153
K130: 3625 | L130: 0.05419550485 | M130: 0.05830795576 | N130: 0.04991807029 | O130: 0.2349108459 | P130: 0.06356342464 | Q130: 0.1318004816 | R130: 0.08293368826 | S130: 0.1417332856
K131: 3626 | L131: 0.05622679941 | M131: 0.06035391182 | N131: 0.05163709684 | O131: 0.237184038 | P131: 0.06522599044 | Q131: 0.1357880403 | R131: 0.08527553188 | S131: 0.145352121
K132: 3627 | L132: 0.05632050033 | M132: 0.06073495071 | N132: 0.05173958466 | O132: 0.2377114987 | P132: 0.06562681274 | Q132: 0.136943702 | R132: 0.08614837996 | S132: 0.1484891683
K133: 3628 | L133: 0.053754744 | M133: 0.05858346781 | N133: 0.04941539237 | O133: 0.2350442002 | P133: 0.06374906376 | Q133: 0.1327770596 | R133: 0.08392320117 | S133: 0.1482820878
K134: 3629 | L134: 0.04864926635 | M134: 0.05393405166 | N134: 0.04474534361 | O134: 0.2287471376 | P134: 0.05965619037 | Q134: 0.1230208385 | R134: 0.07841693505 | S134: 0.1432332297
K135: 3630 | L135: 0.04213308625 | M135: 0.04809499029 | N135: 0.03899123411 | O135: 0.2205070482 | P135: 0.05472399928 | Q135: 0.1103083543 | R135: 0.07116527282 | S135: 0.1342852812
K136: 3631 | L136: 0.03602439919 | M136: 0.04301373501 | N136: 0.03402006311 | O136: 0.2128676792 | P136: 0.05065697674 | Q136: 0.09895225019 | R136: 0.06436143333 | S136: 0.1247765328
K137: 3632 | L137: 0.03204191243 | M137: 0.04024544502 | N137: 0.03122993759 | O137: 0.2071196281 | P137: 0.04851162461 | Q137: 0.09220196157 | R137: 0.05993156985 | S137: 0.1178985178
K138: 3633 | L138: 0.03094061159 | M138: 0.04000396988 | N138: 0.03079063796 | O138: 0.2034710118 | P138: 0.04823602779 | Q138: 0.09049931106 | R138: 0.05811734173 | S138: 0.1144949341
K139: 3634 | L139: 0.03248073103 | M139: 0.04166862525 | N139: 0.03207386747 | O139: 0.2003559685 | P139: 0.04923603669 | Q139: 0.09268428621 | R139: 0.05827128685 | S139: 0.1142517192
K140: 3635 | L140: 0.03582262344 | M140: 0.04444088347 | N140: 0.03439015601 | O140: 0.1956314393 | P140: 0.05095334344 | Q140: 0.09764831435 | R140: 0.05988506485 | S140: 0.117136748
K141: 3636 | L141: 0.0404226332 | M141: 0.04812523148 | N141: 0.03752573137 | O141: 0.1880130084 | P141: 0.05352898585 | Q141: 0.1054017684 | R141: 0.06326165109 | S141: 0.1244160095
K142: 3637 | L142: 0.04563092031 | M142: 0.05238742065 | N142: 0.04112997352 | O142: 0.1787740118 | P142: 0.05692446564 | Q142: 0.1149971635 | R142: 0.06848063388 | S142: 0.1356059235
K143: 3638 | L143: 0.05058788807 | M143: 0.05637702169 | N143: 0.04448182103 | O143: 0.1721331683 | P143: 0.06056318145 | Q143: 0.1239012102 | R143: 0.07437201372 | S143: 0.1472285598
K144: 3639 | L144: 0.05430412336 | M144: 0.05898908818 | N144: 0.04679442078 | O144: 0.1716307367 | P144: 0.06344020574 | Q144: 0.1294406657 | R144: 0.07889043632 | S144: 0.154926046
K145: 3640 | L145: 0.05585876401 | M145: 0.0593666518 | N145: 0.04741471745 | O145: 0.1771748591 | P145: 0.06447566219 | Q145: 0.1297885538 | R145: 0.07993251426 | S145: 0.1555829891
K146: 3641 | L146: 0.05523590473 | M146: 0.05760136198 | N146: 0.04629181274 | O146: 0.1862193783 | P146: 0.06319766978 | Q146: 0.1255873439 | R146: 0.07717052625 | S146: 0.1495141765
K147: 3642 | L147: 0.05299103629 | M147: 0.05461391017 | N147: 0.04399211113 | O147: 0.1961235313 | P147: 0.06004834554 | Q147: 0.118913635 | R147: 0.07201464606 | S147: 0.1396137835
K148: 3643 | L148: 0.0498769 | M148: 0.05144436436 | N148: 0.04135150043 | O148: 0.2058420067 | P148: 0.05615252976 | Q148: 0.1120959138 | R148: 0.06682316896 | S148: 0.1297481968
K149: 3644 | L149: 0.04628945238 | M149: 0.04865414269 | N149: 0.03892591596 | O149: 0.2140494224 | P149: 0.0525944644 | Q149: 0.1063890594 | R149: 0.06333690336 | S149: 0.1229391076
K150: 3645 | L150: 0.04228917278 | M150: 0.04601390495 | N150: 0.03675094556 | O150: 0.2193534326 | P150: 0.04979815469 | Q150: 0.1015337905 | R150: 0.06151329516 | S150: 0.1194377737
K151: 3646 | L151: 0.03827459549 | M151: 0.04345914386 | N151: 0.03483431771 | O151: 0.2215334402 | P151: 0.04765698816 | Q151: 0.0972940391 | R151: 0.06060753812 | S151: 0.1184074384
K152: 3647 | L152: 0.03508464516 | M152: 0.0413278884 | N152: 0.03336211711 | O152: 0.2218142967 | P152: 0.04596902421 | Q152: 0.09408544889 | R152: 0.06026420039 | S152: 0.1190216984
K153: 3648 | L153: 0.03394110849 | M153: 0.04052962789 | N153: 0.03288387044 | O153: 0.2227791366 | P153: 0.04510098286 | Q153: 0.09328174166 | R153: 0.06103569414 | S153: 0.1217794252
K154: 3649 | L154: 0.03533874492 | M154: 0.04160129614 | N154: 0.03376911723 | O154: 0.2250184825 | P154: 0.04565531719 | Q154: 0.09568933053 | R154: 0.06354865038 | S154: 0.127084781
K155: 3650 | L155: 0.03892062349 | M155: 0.04431888365 | N155: 0.035892937 | O155: 0.2263957291 | P155: 0.04758450339 | Q155: 0.1006416442 | R155: 0.06749131585 | S155: 0.1341557922
K156: 3651 | L156: 0.04356449962 | M156: 0.04774692626 | N156: 0.03861340521 | O156: 0.2252395865 | P156: 0.05012078652 | Q156: 0.106284329 | R156: 0.07135210911 | S156: 0.1408523095
K157: 3652 | L157: 0.04799927529 | M157: 0.05101195752 | N157: 0.04107846022 | O157: 0.2219884255 | P157: 0.05255849133 | Q157: 0.1111140488 | R157: 0.07372664131 | S157: 0.1453538882
K158: 3653 | L158: 0.05182006768 | M158: 0.05403945983 | N158: 0.04303600614 | O158: 0.2187149036 | P158: 0.05502993232 | Q158: 0.1154905858 | R158: 0.07494431846 | S158: 0.1491963711
K159: 3654 | L159: 0.0554197076 | M159: 0.0573892101 | N159: 0.04491434903 | O159: 0.2163852153 | P159: 0.05842144966 | Q159: 0.120823508 | R159: 0.07670803326 | S159: 0.1557176146
K160: 3655 | L160: 0.05917553885 | M160: 0.06116121325 | N160: 0.04702168756 | O160: 0.2157952165 | P160: 0.06292125567 | Q160: 0.1273452101 | R160: 0.07999836448 | S160: 0.1653924462
K161: 3656 | L161: 0.06312419351 | M161: 0.06512906802 | N161: 0.04937795602 | O161: 0.2179381319 | P161: 0.0678051597 | Q161: 0.1344204672 | R161: 0.08469873333 | S161: 0.1759836785
K162: 3657 | L162: 0.06685159184 | M162: 0.06861660008 | N162: 0.05160289512 | O162: 0.2226291039 | P162: 0.07189721205 | Q162: 0.1407996161 | R162: 0.08952878391 | S162: 0.1848286723
K163: 3658 | L163: 0.06969238321 | M163: 0.07101498271 | N163: 0.05326970565 | O163: 0.2275104458 | P163: 0.07443308946 | Q163: 0.1454009527 | R163: 0.0933006729 | S163: 0.1910695513
K164: 3659 | L164: 0.07101023991 | M164: 0.07188141158 | N164: 0.05403672977 | O164: 0.2283676647 | P164: 0.07511268043 | Q164: 0.1473506338 | R164: 0.09520288318 | S164: 0.1942535479
K165: 3660 | L165: 0.07084952427 | M165: 0.07130968219 | N165: 0.054055446 | O165: 0.2233058692 | P165: 0.07439951213 | Q165: 0.1468107739 | R165: 0.0953091085 | S165: 0.1948963315
K166: 3661 | L166: 0.06944156009 | M166: 0.06963997895 | N166: 0.05357428505 | O166: 0.2136847101 | P166: 0.07291958043 | Q166: 0.1444345915 | R166: 0.09417974029 | S166: 0.1937040952
K167: 3662 | L167: 0.06751395746 | M167: 0.06762825936 | N167: 0.05305628754 | O167: 0.2020683598 | P167: 0.07167226709 | Q167: 0.1419627544 | R167: 0.09304050765 | S167: 0.1924910143
K168: 3663 | L168: 0.06591579672 | M168: 0.06626207491 | N168: 0.05298729183 | O168: 0.1912462868 | P168: 0.07128318351 | Q168: 0.1412671774 | R168: 0.09318480486 | S168: 0.1940682724
K169: 3664 | L169: 0.06506980273 | M169: 0.06596192035 | N169: 0.05340047276 | O169: 0.1830909254 | P169: 0.07194712599 | Q169: 0.1428310683 | R169: 0.09499171174 | S169: 0.1991757419
K170: 3665 | L170: 0.06473452688 | M170: 0.06635330409 | N170: 0.0538762495 | O170: 0.1786963868 | P170: 0.0731516874 | Q170: 0.1454010208 | R170: 0.09763454854 | S170: 0.2064434319
K171: 3666 | L171: 0.06419310973 | M171: 0.06654530754 | N171: 0.05382854933 | O171: 0.1782868476 | P171: 0.0740119164 | Q171: 0.1464584377 | R171: 0.09936408376 | S171: 0.2119976418
K172: 3667 | L172: 0.06270100887 | M172: 0.06569065746 | N172: 0.05271779746 | O172: 0.181112265 | P172: 0.07349521514 | Q172: 0.1439462479 | R172: 0.09842148742 | S172: 0.2116751256
K173: 3668 | L173: 0.06029496276 | M173: 0.0640365351 | N173: 0.05073548473 | O173: 0.1866746899 | P173: 0.0715717362 | Q173: 0.1383655079 | R173: 0.09506371095 | S173: 0.2045502076
K174: 3669 | L174: 0.05803587651 | M174: 0.06257676146 | N174: 0.04878513463 | O174: 0.194186506 | P174: 0.069185309 | Q174: 0.1326583922 | R174: 0.0912995531 | S174: 0.194152211
K175: 3670 | L175: 0.057351891 | M175: 0.06258679528 | N175: 0.04809202737 | O175: 0.2033326305 | P175: 0.06794213711 | Q175: 0.13055639 | R175: 0.0900050147 | S175: 0.1872265596
K176: 3671 | L176: 0.05877619732 | M176: 0.0642281712 | N176: 0.04908568601 | O176: 0.2141757586 | P176: 0.06838155649 | Q176: 0.1330993677 | R176: 0.09246859273 | S176: 0.1876277271
K177: 3672 | L177: 0.06171652651 | M177: 0.0666141583 | N177: 0.05110558656 | O177: 0.2257888183 | P177: 0.07023456402 | Q177: 0.1385322392 | R177: 0.09777385063 | S177: 0.1947114159
K178: 3673 | L178: 0.06482629993 | M178: 0.06848415167 | N178: 0.05288044805 | O178: 0.2358926002 | P178: 0.07219924151 | Q178: 0.1435481134 | R178: 0.1033226785 | S178: 0.2041247501
K179: 3674 | L179: 0.06690018436 | M179: 0.06899333877 | N179: 0.0534584582 | O179: 0.2418094118 | P179: 0.07339615512 | Q179: 0.1457954254 | R179: 0.1065892262 | S179: 0.2109750664
K180: 3675 | L180: 0.06700092044 | M180: 0.06802034325 | N180: 0.05264003847 | O180: 0.2427954848 | P180: 0.07320396822 | Q180: 0.1447899797 | R180: 0.1065081192 | S180: 0.2128708146
K181: 3676 | L181: 0.06481161121 | M181: 0.06577706791 | N181: 0.05077258909 | O181: 0.2393083878 | P181: 0.07177647948 | Q181: 0.1411110789 | R181: 0.1035220833 | S181: 0.2098447006
K182: 3677 | L182: 0.06064564776 | M182: 0.06255167439 | N182: 0.04820585337 | O182: 0.2323476542 | P182: 0.06948490616 | Q182: 0.1355526283 | R182: 0.09874375191 | S182: 0.2027572501
K183: 3678 | L183: 0.0557140485 | M183: 0.05913184725 | N183: 0.04543326285 | O183: 0.2226152445 | P183: 0.06682504133 | Q183: 0.1292672493 | R183: 0.09330125131 | S183: 0.1925403096
K184: 3679 | L184: 0.05193201895 | M184: 0.05689984005 | N184: 0.04332247559 | O184: 0.2119678371 | P184: 0.06469571783 | Q184: 0.1244999292 | R184: 0.08891269438 | S184: 0.1819403688
K185: 3680 | L185: 0.05055366816 | M185: 0.05683347633 | N185: 0.04257441789 | O185: 0.203993009 | P185: 0.06371736855 | Q185: 0.1227074003 | R185: 0.08676360229 | S185: 0.1732658801
K186: 3681 | L186: 0.05143688507 | M186: 0.05860431495 | N186: 0.04330929564 | O186: 0.2015896094 | P186: 0.0636531328 | Q186: 0.1234053084 | R186: 0.08678249526 | S186: 0.1659660426
K187: 3682 | L187: 0.05313420292 | M187: 0.0606739568 | N187: 0.04476566011 | O187: 0.2043462988 | P187: 0.0637219824 | Q187: 0.1243702277 | R187: 0.08790238153 | S187: 0.1582065088
K188: 3683 | L188: 0.05382374027 | M188: 0.06108084654 | N188: 0.04580464249 | O188: 0.2088598827 | P188: 0.0630414952 | Q188: 0.1231042644 | R188: 0.08826493479 | S188: 0.1489953245
K189: 3684 | L189: 0.0523410845 | M189: 0.05886395505 | N189: 0.04563215477 | O189: 0.2107921135 | P189: 0.06136415454 | Q189: 0.1185433468 | R189: 0.08657551629 | S189: 0.1395727211
K190: 3685 | L190: 0.0487626162 | M190: 0.05450601217 | N190: 0.04414171329 | O190: 0.2069704088 | P190: 0.0587245234 | Q190: 0.1113553576 | R190: 0.08222632985 | S190: 0.1313238776
K191: 3686 | L191: 0.04456170335 | M191: 0.05001036279 | N191: 0.04212324347 | O191: 0.1959407215 | P191: 0.05596050372 | Q191: 0.1041718239 | R191: 0.07662524883 | S191: 0.12516343
K192: 3687 | L192: 0.04177422531 | M192: 0.04752888756 | N192: 0.04062559765 | O192: 0.1780460765 | P192: 0.054173249 | Q192: 0.09999022019 | R192: 0.0721784091 | S192: 0.1214177861
K193: 3688 | L193: 0.04243639665 | M193: 0.04863756468 | N193: 0.04088704729 | O193: 0.1550783524 | P193: 0.05489410043 | Q193: 0.1016322978 | R193: 0.07176170889 | S193: 0.1220335174
K194: 3689 | L194: 0.04700569994 | M194: 0.05315140078 | N194: 0.04321653653 | O194: 0.1307630527 | P194: 0.05859256388 | Q194: 0.1091781439 | R194: 0.07603861876 | S194: 0.1282658091
K195: 3690 | L195: 0.05371539169 | M195: 0.05911513989 | N195: 0.04665850733 | O195: 0.1090294226 | P195: 0.06381578388 | Q195: 0.119542396 | R195: 0.08300283195 | S195: 0.1382960861
K196: 3691 | L196: 0.05961212359 | M196: 0.06403513652 | N196: 0.04975468892 | O196: 0.0946057768 | P196: 0.06849817082 | Q196: 0.1285222028 | R196: 0.08946532822 | S196: 0.1485204048
K197: 3692 | L197: 0.06243890415 | M197: 0.06626582289 | N197: 0.05134434589 | O197: 0.09103528393 | P197: 0.07072192824 | Q197: 0.1330581117 | R197: 0.09286421719 | S197: 0.1559144174
K198: 3693 | L198: 0.06220199748 | M198: 0.06604666312 | N198: 0.05149489693 | O198: 0.09895215936 | P198: 0.07039168612 | Q198: 0.1335773637 | R198: 0.0931955905 | S198: 0.1600975876
K199: 3694 | L199: 0.06096389654 | M199: 0.06518182826 | N199: 0.05139378137 | O199: 0.1156261302 | P199: 0.06919274762 | Q199: 0.1333937697 | R199: 0.09298036514 | S199: 0.1643990945
K200: 3695 | L200: 0.06080675337 | M200: 0.06529907545 | N200: 0.05213221379 | O200: 0.1356564556 | P200: 0.06902922926 | Q200: 0.1356723928 | R200: 0.09477106159 | S200: 0.1720728764
K201: 3696 | L201: 0.06270066743 | M201: 0.06717712935 | N201: 0.05415337763 | O201: 0.1536375126 | P201: 0.07076703987 | Q201: 0.1414065639 | R201: 0.09961620211 | S201: 0.1837367995
... 4299 more rows
